{"text_format":"1","workbook":"xlsx","n_sheets":16,"sheets":["はじめに","作成要領","報告書第一面","報告書第二面","報告書第三面","報告書第四面","調査結果表その１","調査結果表その２","調査結果表その３","調査結果表その４","調査結果表その５","調査結果表その６","概要書第一面","概要書第二面","図面","写真台紙"],"not_rendered":{"charts":0,"images":0,"macros":1,"external_links":0,"defined_names":14,"comments":5,"pivot_tables":0},"unopened":[],"bounds":{"document_bytes":16777216,"sheet_cells":100000,"rows_first":2000,"rows_last":500,"rows_between":2000,"halvings":0,"cell_chars":16384,"cell_head_chars":4096},"cells_cut":0,"cells_raw":0,"read":"whole","date_system":"1900"}

{"sheet":"はじめに","index":0,"n_rows":25,"n_cols":3,"rows_kept":25,"cut":false,"hidden":false,"merged":[[24,2,26,36],[4,2,4,36],[11,2,11,8],[7,2,7,36],[18,2,19,36],[13,2,13,36],[21,2,22,36],[15,2,16,36],[9,2,9,36],[5,2,5,36],[6,2,6,36],[8,2,8,36]]}
[]
[]
[null,null,"ご利用上の注意"]
[]
[null,null,"　このエクセルファイルには、マクロが使用されているのでマクロを有効にしてご利用ください。"]
[null,null,"※マクロを有効にする方法(Excel2013, 2016, 2019の場合)"]
[null,null,"　以下の順でクリックします。"]
[null,null,"　[ファイル] ＞ [オプション] ＞ [セキュリティ センター]*1 ＞ [セキュリティ センターの設定]*1 ＞ [マクロの設定]"]
[null,null,"　＞ [すべてのマクロを有効にする (推奨しません。危険なコードが実行される可能性があります) ]を選択"]
[null,null,"　*1:Excel2019では、「セキュリティ センター」　は　「トラスト センター」　となっています。"]
[]
[]
[]
[null,null,"（重要なお知らせ）"]
[]
[null,null,"※建築基準法施行規則等の一部を改正する省令（平成２８年２月２９日公布　国土交通省令第１０号）により、東京都内の各特定行政庁は、建築基準法施行細則等の一部を改正し、定期調査報告書等の様式の一部を変更しました。"]
[]
[]
[null,null,"※建築基準法施行規則の改正（平成２０年２月１８日公布　国土交通省令第７号）により、東京都内の各特定行政庁は、建築基準法施行細則等を改正し、報告書の様式等を全面的に変更しました。"]
[]
[]
[null,null,"※平成１７年６月から「定期調査報告概要書」（１部）の提出が必要となりました。\nこの「定期調査報告概要書」は「定期調査報告書」に入力すると各項目が同じ内容なので自動的に作成されます。"]
[]
[]
[null,null,"※平成２３年５月からの調査報告書第三面の【３　石綿を添加した建築材料の調査状況】及び【４　耐震診断及び耐震改修の調査状況】欄の記載内容を、概要書第一面【５．調査による指摘の概要】欄の【ニ．その他特記事項】に記載することとなりました。記載すべき内容を確認の上、シート保護の解除を行った後、新たに概要書へ記載すべき内容の文言を入力してください。"]

{"sheet":"作成要領","index":1,"n_rows":317,"n_cols":9,"rows_kept":317,"cut":false,"hidden":false,"merged":[[279,2,279,37],[280,2,280,37],[193,2,193,37],[198,2,198,37],[199,2,199,37],[200,2,200,37],[201,2,201,37],[206,2,206,37],[207,2,207,37],[208,2,208,37],[202,2,202,37],[203,2,203,37],[204,2,204,37],[216,2,216,37],[209,2,209,37],[210,2,210,37],[212,2,212,37],[211,1,211,37],[213,2,213,37],[214,2,214,37],[215,2,215,37],[242,2,242,37],[243,2,243,37],[265,2,265,37],[314,1,314,37],[310,1,310,37],[311,1,311,37],[312,1,312,37],[313,1,313,37],[223,2,223,37],[217,2,217,37],[218,2,218,37],[219,2,219,37],[241,2,241,37],[249,2,249,37],[259,2,259,37],[261,2,261,37],[248,2,248,37],[253,2,253,37],[252,2,252,37],[254,2,254,37],[260,2,260,37],[236,8,236,36],[237,8,237,36],[304,1,304,37],[290,1,290,37],[305,1,305,37],[295,1,295,37],[46,2,46,37],[49,2,49,37],[23,1,23,37],[26,1,26,37],[27,1,27,37],[37,2,37,37],[38,2,38,37],[29,1,29,37],[34,1,34,37],[43,2,43,37],[44,2,44,37],[45,2,45,37],[35,2,35,37],[36,2,36,37],[41,1,41,37],[42,2,42,37],[315,1,315,37],[316,1,316,37],[306,1,306,37],[307,1,307,37],[308,1,308,37],[309,1,309,37],[50,2,50,37],[55,2,55,37],[56,2,56,37],[57,2,57,37],[188,2,188,37],[220,2,220,37],[194,2,194,37],[195,2,195,37],[196,2,196,37],[197,2,197,37],[205,2,205,37],[58,2,58,37],[52,2,52,37],[53,2,53,37],[51,2,51,37],[54,2,54,37],[65,2,65,37],[66,2,66,37],[0,0,0,37],[48,2,48,37],[6,0,6,37],[7,0,7,37],[11,1,11,37],[12,1,12,37],[13,1,13,37],[14,1,14,37],[39,2,39,37],[40,2,40,37],[17,1,17,37],[47,2,47,37],[21,1,21,37],[22,1,22,37],[24,1,24,37],[25,1,25,37],[28,1,28,37],[15,1,15,37],[16,1,16,37],[1,0,1,28],[5,0,5,37],[2,0,2,37],[3,0,3,37],[30,1,30,37],[59,2,59,37],[60,2,60,37],[61,2,61,37],[62,2,62,37],[71,2,71,37],[72,2,72,37],[73,2,73,37],[63,2,63,37],[64,2,64,37],[74,2,74,37],[67,2,67,37],[68,2,68,37],[69,2,69,37],[70,2,70,37],[80,2,80,37],[81,2,81,37],[82,2,82,37],[83,2,83,37],[75,2,75,37],[76,1,76,37],[77,2,77,37],[78,2,78,37],[88,2,88,37],[89,2,89,37],[79,2,79,37],[90,2,90,37],[91,2,91,37],[84,2,84,37],[85,2,85,37],[86,2,86,37],[87,2,87,37],[96,2,96,37],[97,2,97,37],[98,2,98,37],[99,2,99,37],[92,2,92,37],[93,2,93,37],[94,2,94,37],[95,2,95,37],[104,2,104,37],[105,2,105,37],[106,2,106,37],[100,2,100,37],[101,2,101,37],[102,2,102,37],[103,2,103,37],[107,2,107,37],[108,2,108,37],[109,2,109,37],[110,2,110,37],[111,2,111,37],[112,2,112,37],[113,2,113,37],[114,2,114,37],[115,2,115,37],[116,2,116,37],[117,2,117,37],[125,2,125,37],[126,2,126,37],[127,2,127,37],[128,2,128,37],[118,2,118,37],[119,2,119,37],[123,2,123,37],[124,2,124,37],[134,2,134,37],[135,2,135,37],[122,2,122,37],[121,2,121,37],[120,2,120,37],[133,2,133,37],[155,2,155,37],[156,2,156,37],[136,2,136,37],[137,2,137,37],[129,2,129,37],[130,2,130,37],[131,2,131,37],[132,2,132,37],[142,2,142,37],[143,2,143,37],[144,2,144,37],[145,2,145,37],[138,2,138,37],[139,2,139,37],[140,2,140,37],[141,2,141,37],[151,2,151,37],[152,2,152,37],[154,2,154,37],[153,1,153,37],[146,2,146,37],[147,2,147,37],[148,2,148,37],[150,2,150,37],[157,2,157,37],[158,2,158,37],[159,2,159,37],[164,2,164,37],[165,2,165,37],[166,2,166,37],[172,2,172,37],[174,2,174,37],[160,2,160,37],[161,2,161,37],[162,2,162,37],[163,2,163,37],[168,2,168,37],[175,2,175,37],[176,2,176,37],[173,2,173,37],[167,2,167,37],[169,2,169,37],[170,2,170,37],[171,2,171,37],[221,2,221,37],[222,2,222,37],[181,2,181,37],[182,2,182,37],[183,2,183,37],[184,2,184,37],[177,2,177,37],[178,2,178,37],[179,2,179,37],[180,2,180,37],[189,2,189,37],[190,2,190,37],[191,2,191,37],[192,2,192,37],[185,2,185,37],[186,2,186,37],[187,2,187,37],[269,2,269,37],[244,2,244,37],[239,8,239,36],[226,1,226,37],[231,2,231,7],[233,2,233,7],[234,2,234,7],[235,2,235,7],[239,2,239,7],[237,2,237,7],[227,2,227,37],[228,2,228,37],[229,2,229,37],[230,2,230,7],[230,8,230,36],[235,8,235,36],[246,2,246,37],[247,2,247,37],[303,1,303,37],[302,1,302,37],[270,2,270,37],[264,2,264,37],[256,2,256,37],[257,2,257,37],[258,2,258,37],[263,2,263,37],[245,2,245,37],[296,1,296,37],[297,1,297,37],[291,1,291,37],[292,1,292,37],[293,1,293,37],[298,1,298,37],[299,1,299,37],[300,1,300,37],[294,1,294,37],[266,2,266,37],[267,2,267,37],[268,2,268,37],[276,2,276,37],[277,2,277,37],[278,2,278,37],[149,2,149,37],[275,2,275,37],[301,1,301,37],[271,2,271,37],[284,1,284,37],[285,1,285,37],[286,1,286,37],[262,2,262,37],[250,2,250,37],[251,2,251,37],[255,2,255,37],[289,1,289,37],[288,1,288,37],[287,1,287,37],[272,2,272,37],[273,2,273,37],[274,2,274,37],[281,2,281,37],[240,1,240,37],[231,8,231,36],[232,8,232,36],[233,8,233,36],[234,8,234,36],[238,8,238,36]]}
["定期調査報告書作成要領"]
[]
["〒160-8353　新宿区西新宿7-7-30　小田急西新宿O-PLACE"]
["公益財団法人　東京都防災・建築まちづくりセンター"]
[]
["　調査者は、防災の専門家として建築物の安全について調査し、所有者・管理者へ指摘、助言を行い、その結果を調査報告書として"]
["提出する。"]
["　また、調査は調査結果表の項目に基づき、目視等の方法で行うものとする。"]
[]
[]
[]
[null,"（１）簡潔、明瞭でかつ正確に表現する。"]
[null,"（２）事実を公正に、かつ客観的に表現する。"]
[null,"（３）所見等主観を述べる場合は、論旨を明確にする。"]
[null,"（４）別途精密調査を必要と判断される場合は、その旨を明記する。"]
[null,"（５）原因不明や改善策等で疑問のある場合は、センターと協議する。"]
[null,"（６）緊急に危険が予想される場合は、所有者等と協議の上、仮措置を講じる。"]
[null,"（７）数字は算用数字、単位はメートル法を用いる。"]
[]
[]
[]
[null,"（１）各報告書ごとに、付近見取図（案内図）、配置図及び各階平面図、写真を添付すること。"]
[null,"（２）図面は、配置図及び各階平面図を調査結果図（別添１様式（Ａ３））に縮小して張り込みＡ３とし、できるだけ鮮明なもの"]
[null,"　　を使用すること。縮尺は任意であるが、面積が算定できる程度の寸法を記入し、各階平面図には、防火区画の表示、防火設備"]
[null,"　　の種別と閉鎖方式、避難器具の種類と位置及び非常用進入口の位置等、指摘された調査項目の内容及び位置等、並びに写真撮"]
[null,"　　影の位置を凡例とともに表示すること。"]
[null,"　　　なお、調査結果図に縮小して張り込みをしたが、文字及び寸法等が読みづらい場合に限り、調査結果図に「別添図面参照」"]
[null,"　　と記入し、その後に図面を添付すること。"]
[null,"（３）配置図には、敷地内における建築物の位置及び敷地に接する道路の位置・幅員等を記入すること。"]
[null,"（４）「要是正」と指摘された調査項目（既存不適格を除く。）については、写真を撮影し、番号、調査項目、調査結果、指摘内"]
[null,"　　容を記入すること。なお同じ指摘内容は代表的な写真一か所とする事が出来る。"]
[]
[]
[]
[null,"(１)　定期調査報告書の構成―第一面～四面"]
[null,null,"①　第一面は、調査報告の基本的事項である「整理番号」、「報告者」、「所有者・管理者」、「調査者」、「報告対象建築"]
[null,null,"　物」についての基本的事項と「調査による指摘の概要」について記入する。"]
[null,null,"②　第二面は、「建築物及び敷地に関する事項」について、経過も含めて具体的に記入する。"]
[null,null,"③　第三、四面は、「調査等の概要」と「建築物等に係る不具合等の状況」について記入するが、このうち「調査の状況」は、"]
[null,null,"　後の４で説明する実際に建築物を調査し、その現在の状況を記録した「調査結果表」から「要是正」のみの内容について指"]
[null,null,"　摘の概要欄に転記する。"]
[null,"(２)　定期調査報告書第一面関係"]
[null,null,"①　報告者及び調査者の氏名を記載する。"]
[null,null,"②　調査者が２名以上いる場合においては、代表となる調査者の氏名を記入する。"]
[null,null,"③　１欄【所有者】及び２欄【管理者】は、所有者又は管理者が法人のときは、【ロ　氏名】はそれぞれ法人の名称及び代表"]
[null,null,"　者氏名を、【ニ　住所】はそれぞれ法人の所在地を記入する。"]
[null,null,"　　「所有者」が「管理者」と同一の場合は、２欄【管理者】に「所有者と同じ」と記入する。"]
[null,null,"④　３欄【調査者】は、代表となる調査者及び当該建築物の調査を行ったすべての調査者について記入する。"]
[null,null,"　　なお、当該建築物の調査を行った調査者が１人の場合は、（その他の調査者）欄を削除しても構わない。"]
[null,null,"⑤　３欄【調査者】の【イ　資格】は、調査に必要な資格について記入する。建築基準法施行規則第６条の６に規定する特定"]
[null,null,"　建築物調査員である場合は、同規則第６条の５に規定する特定建築物調査員資格証の交付番号を「特定建築物調査員」の番"]
[null,null,"　号欄に記入する。"]
[null,null,"⑥　３欄【調査者】の【ニ　勤務先】は、調査者が法人に勤務している場合は、調査者の勤務先を記入し、勤務先が建築士事"]
[null,null,"　務所のときは、事務所登録番号も記入する。"]
[null,null,"　（注）調査者が建築士の場合は、建築士法第23条が適用されるため事務所登録番号を記入する。"]
[null,null,"⑦　３欄【調査者】の【ホ　郵便番号】から【ト　電話番号】は、調査者が法人に勤務している場合は、調査者の勤務先を記"]
[null,null,"　入し、調査者が法人に勤務していないときは調査者の住所を記入する。"]
[null,null,"⑧　４欄【報告対象建築物】の【イ　所在地】は、住居表示が施行されているときは、住居表示で記入する。"]
[null,null,"⑨　第三面の２欄【調査の状況】のいずれかの【イ　指摘の内容】において、「要是正の指摘あり」又は「特記すべき事項あ"]
[null,null,"　り」に「レ」マークを入れたときは、５欄【調査による指摘の概要】の【イ　指摘の内容】の「要是正の指摘あり」又は"]
[null,null,"　「特記すべき事項あり」のチェックボックスに「レ」マークを入れる。"]
[null,null,"　　また、５欄の【イ　指摘の内容】の（□既存不適格）については、第三面の２欄の【イ　指摘の内容】の「要是正の指摘"]
[null,null,"　あり」に「レ」を入れたもののすべてについて「既存不適格」に「レ」が入った場合のみチェックボックスに「レ」マーク"]
[null,null,"　を入れる。"]
[null,null,"　（注）「既存不適格」でない「要是正」のみのものが１つでもある場合は、（□既存不適格）に記入しない。"]
[null,null,"　　なお、いずれにも該当しないときは、「指摘なし」のチェックボックスに「レ」マークを入れる。"]
[null,null,"⑩　５欄【調査による指摘の概要】の【ロ　指摘の概要】の（要是正）は、第三面の２欄【調査の状況】の各調査項目におい"]
[null,null,"　て、該当する調査項目（大項目）をすべて記入する。この指摘の内容は、定期調査報告概要書第一面の５欄【ロ　指摘の概"]
[null,null,"　要】に反映される。"]
[null,null,"⑪　５欄【調査による指摘の概要】の【ロ　指摘の概要】の（既存不適格）は、調査結果表の各調査項目において、該当する"]
[null,null,"　調査項目（大項目）をすべて記入する。"]
[null,null,"⑫　５欄【調査による指摘の概要】の【ハ　改善予定の有無】は、第三面の２欄【ハ　改善予定の有無】欄のいずれかの「有」"]
[null,null,"　に「レ」マークを入れたときは、「有」のチェックボックスに「レ」マークを入れ、第三面の２欄【ハ　改善予定の有無】"]
[null,null,"　欄に記入された改善予定年月のうち最も早いものを記入する。"]
[null,null,"⑬　５欄【調査による指摘の概要】の【ニ　その他特記事項】は、第三面の２欄【調査の状況】の各調査項目において、該当"]
[null,null,"　する調査項目（大項目）をすべて記入する。"]
[null,"(３)　定期調査報告書第二面（建築物及びその敷地に関する事項）関係"]
[null,null,"①　この書類は、原則として、一の建築物（棟）ごとに作成する。"]
[null,null,"　　同一建築物で他に定期調査報告をしている部分がある場合は、その番号、報告年月日、用途等を８欄【備　考】に記入す"]
[null,null,"　る。"]
[null,null,"②　１欄【敷地の位置】の地域・地区については、現在の防火・準防火、用途地域等の指定を記入する。"]
[null,null,"　　敷地が複数の地域にまたがる場合は、１欄の【イ　防火地域等】は、該当するすべてのチェックボックスに「レ」マーク"]
[null,null,"　を入れる。"]
[null,null,"　　なお、東京都の場合、防火、準防火地域指定地区と奥多摩町、檜原村、島嶼を除く全域が建築基準法第22条第１項の屋根"]
[null,null,"　の構造についての地域指定がされているため、前記の地区（防火、準防火～島嶼）を除き、「その他」のチェックボックス"]
[null,null,"　に「レ」マークを入れ、併せて「法22条区域」と記入する。"]
[null,null,"　　また、その他建築基準法又はそれに基づく命令により地域・地区等の指定がされている場合は、「その他」のチェックボ"]
[null,null,"　ックスに「レ」マークを入れ、併せてその内容を括弧内に記入する。"]
[null,null,"　　なお、法39条の災害危険区域に指定されている場合も同様とする。"]
[null,null,"③　１欄の【ロ　用途地域】は、該当する用途地域名をすべて記入する。"]
[null,null,"④　２欄【建築物及びその敷地の概要】の【イ　構造】は、該当するすべてのチェックボックスに「レ」マークを入れる。"]
[null,null,"　　その他の構造からなる場合には、「その他」のチェックボックスに「レ」マークを入れ、具体的な構造を記入する。"]
[null,null,"　　なお、付属建築物が報告を要しない場合は省略することができる。"]
[null,null,"⑤　２欄の【ホ　延べ面積】の「今回報告部分の床面積の合計」は、３欄の【ロ　用途別】のうち当該報告年度に報告を要す"]
[null,null,"　る部分の床面積の合計を記入する。"]
[null,null,"⑥　３欄【階別用途別床面積】の【イ　階別用途別】の「用途」及び「床面積」については、すべての用途を最上階から順に"]
[null,null,"　記入し、その用途に供する部分の床面積（用途に供する部分のための廊下、階段等を含む）を記入する。"]
[null,null,"　　同一階に用途が複数あるときは、共用部を面積加重平均でそれぞれ割り振り記入する。"]
[null,null,"　　「階別床面積の合計」は、用途等に係わらず各階における床面積を記入する。"]
[null,null,"　　記入欄が不足する場合には、別紙に必要な事項を記入し第二面の後に添付する。"]
[null,null,"⑦　３欄【階別用途別床面積】の【ロ　用途別】は、【イ　階別用途別】の用途ごとに床面積の合計を記入する。"]
[null,null,"　　記入欄が不足する場合には、別紙に必要な事項を記入し第二面の後に添付する。"]
[null,null,"⑧　４欄【性能検証法等の適用】については、建築基準法に基づく特別な工法、性能の認定の適用がない場合は、「適用なし」"]
[null,null,"　のチェックボックスに「レ」マークを入れる。"]
[null,null,"　　建築基準法第38条（同法第67条の２、第67条の４及び第88条第１項において準用する場合を含む。）の規定による特殊構"]
[null,null,"　造方法等の認定、同法第68条の25第１項の規定による構造方法等の認定又は建築基準法の一部を改正する法律（平成10年法"]
[null,null,"　律第100号）による改正前の建築基準法第38条の規定による認定を受けている建築物のうち、当該適用について特に報告が"]
[null,null,"　必要なものについては、「その他」のチェックボックスに「レ」マークを入れ、その概要を記入する。"]
[null,null,"　　４欄【性能検証法等の適用】は、建築基準法施行令第108条の３第２項に規定する耐火性能検証法により耐火に関する性"]
[null,null,"　能が検証されたときは、「耐火性能検証法」のチェックボックスに、同令第108条の３第５項に規定する防火区画検証法に"]
[null,null,"　より遮炎に関する性能が検証されたときは、「防火区画検証法」のチェックボックスに、令第128条の６第３項に規定すろ"]
[null,null,"　区画避難安全性能が検証されたときは「区画避難安全検証法」のチェックボックスに、同令第129条第３項に規定する階避"]
[null,null,"　難安全検証法により階避難安全性能が検証されたときは、「階避難安全検証法」のチェックボックスに、同令第129条の２"]
[null,null,"　第４項に規定する全館避難安全検証法により全館避難安全性能が検証されたときは、「全館避難安全検証法」のチェックボ"]
[null,null,"　ックスに、それぞれ「レ」マークを入れ、「区画避難安全検証法」の場合には区画避難安全性能を検証した階を、「階避難"]
[null,null,"　安全検証法」の場合には階避難安全性能を検証した階を、併せて記入する。この適用を受けている建築物又は建築物の部分"]
[null,null,"　については、その検証結果を把握のうえ、その前提となる用途、防火区画、防煙垂れ壁、天井高さ等の変更がないかを確認"]
[null,null,"　する必要がある。変更されている場合は、検証を行った設計者等と相談し問題がないかを改めて検証する必要がある。"]
[null,null,"⑨　５欄【検査対象建築設備】は、当該建築物に設けられている防火設備が、法第12条第３項に定める定期検査（以下「定期"]
[null,null,"　検査」という。）対象となっている場合は、「防火設備」のチェックボックスに、換気設備が定期検査対象となっている場"]
[null,null,"　合は、「換気設備」のチェックボックスに、排煙設備が定期検査対象となっている場合は、「排煙設備」のチェックボック"]
[null,null,"　スに、非常用照明装置が定期検査対象となっている場合は、「非常用照明装置」のチェックボックスに、給水設備・排水設"]
[null,null,"　備が定期検査対象となっている場合は、「給水設備・排水設備」のチェックボックスに、それぞれ「レ」マークを入れる。"]
[null,null,"⑩　６欄【増築、改築、用途変更等の経過】は、前回調査時以降に建築（新築を除く。）、用途変更、模様替又は修繕（以下"]
[null,null,"　「増築、改築、用途変更等」という。）について、経過の古いものから順に記入し、確認（建築基準法第６条第１項に規定"]
[null,null,"　する確認。以下同じ。）を受けている場合は建築確認済証交付年月日を、受けていない場合は増築、改築、用途変更等が完"]
[null,null,"　了した年月日を記入し、それぞれ増築、改築、用途変更等の概要を記入する。"]
[null,null,"　　記入欄が不足する場合には、別紙に必要な事項を記入し第二面の後に添付する。"]
[null,null,"⑪　７欄【関連図書の整備状況】の【イ　確認に要した図書】は、最近の確認について、当該確認に要した図書の全部又は一"]
[null,null,"　部があるときは、「有」のチェックボックスに「レ」マークを入れ、そのうち各階平面図のみがあるときは、「各階平面図"]
[null,null,"　あり」のチェックボックスに「レ」マークを入れる。"]
[null,null,"⑫　７欄【関連図書の整備状況】の【ロ　初回確認済証】【ハ　直近確認済証】は、初回と直近の確認に係る確認済証につい"]
[null,null,"　て、該当するチェックボックスに「レ」マークを入れる。"]
[null,null,"　　「有」の場合は、確認済証の交付番号を記入し、交付者に関するチェックボックスに「レ」マークを入れ、「指定確認検"]
[null,null,"　査機関」の場合は、その名称を記入する。"]
[null,null,"　（注）確認済証の交付が初回のみの場合は、【ハ　直近確認済証】に記入する。"]
[null,null,"⑬　７欄【関連図書の整備状況】の【ニ　完了検査に要した図書】は、最近の完了検査について、当該完了検査に要した図書"]
[null,null,"　の全部又は一部があるときは、「有」のチェックボックスに「レ」マークを入れる。"]
[null,null,"⑭　７欄【関連図書の整備状況】の【ホ　初回検査済証】【ヘ　直近検査済証】は、⑫に準じて記入する。"]
[null,null,"　　検査済証が無いか不明の場合で「無」に「レ」マークを記入したときは、既存不適格等の判断で必要となるため、概ねの"]
[null,null,"　竣工年月を（完了年月）欄に記入する。"]
[null,null,"⑮　検査済証は交付されていないが、建築基準法第７条の６第１項第１号により仮使用の承認を受けて報告対象建築物の全部"]
[null,null,"　又は大部分を使用している場合は、仮使用の承認の日を完了の日とみなして報告時期としている。"]
[null,null,"　　７欄【関連図書の整備状況】の【ト　直近の仮使用】は、上記に該当する仮使用の承認を受けている場合のみ記入する。"]
[null,null,"⑯　７欄【関連図書の整備状況】の【チ　全体計画認定】は、建築基準法第86条の８第１項又は第３項の規定に基づく全体計"]
[null,null,"　画認定・全体計画変更認定がある場合は、認定通知書の直近の交付番号を記入する。"]
[null,null,"⑰　７欄【関連図書の整備状況】の【リ　維持保全に関する準則又は計画】は、建築基準法第８条第２項に規定する維持保全"]
[null,null,"　に関する準則又は計画について記入する。"]
[null,null,"⑱　７欄【関連図書の整備状況】の【ヌ　前回の調査に関する書類の写し】は、前回の定期調査の結果を記録した書類の保存"]
[null,null,"　の有無について記入する。"]
[null,null,"　　初回報告の場合や前回が報告対象外の用途であった場合など定期調査の結果を記録した書類（定期調査報告書等）がない"]
[null,null,"　場合は、「対象外」のチェックボックスに「レ」マークを入れる。"]
[null,null,"⑲　各欄に掲げられている項目以外で特に報告すべき事項は、８欄【備  考】又は別紙に記入し第二面の後に添付する。"]
[null,"(４)　定期調査報告書第三面（調査等の概要）関係"]
[null,null,"①　この書類は、一の建築物（棟）ごとに、当該建築物の（敷地及び地盤）、（建築物の外部）、（屋上及び屋根）、（建築"]
[null,null,"　物の内部）、（避難施設等）及び（その他）の状況に関する調査の結果について作成する。"]
[null,null,"②　１欄【調査及び検査の状況】の【イ　今回の調査】は、今回の調査が終了した年月日を記入する。"]
[null,null,"　　（※報告書提出は、調査後三ヶ月以内）"]
[null,null,"　　１欄【調査及び検査の状況】の【ロ　前回の調査】から【ホ　昇降機等の検査】は、検査をおこなっていない場合には、"]
[null,null,"　「未実施」のチェックボックスに「レ」マークを入れ、検査の実施予定がある場合には、実施予定年月日を記入する。"]
[null,null,"　　報告の対象となっていない場合には、「対象外」のチェックボックスに「レ」マークを入れる。"]
[null,null,"　　検査を実施している場合には、報告年月日を記入する。"]
[null,null,"　（注）定期調査報告概要書については、報告の対象となっていない場合には、「対象外」のチェックボックスに「レ」マー"]
[null,null,"　　　　クを入れる。"]
[null,null,"③　２欄【調査の状況】の【イ　指摘の内容】については、当該欄に各特定行政庁が規則で定める方法（東京都内共通）など"]
[null,null,"　に適合していないことが指摘された項目があるときは、「要是正の指摘あり」のチェックボックスに「レ」マークを入れる。"]
[null,null,"　　「要是正」の指摘があるすべての当該項目について建築基準法第３条第２項（同法第86条の９第１項において準用する場"]
[null,null,"　合を含む。）の規定の適用を受けているものであることが確認されたときは、「既存不適格」のチェックボックスに「レ」"]
[null,null,"　マークを入れる。"]
[null,null,"　　「特記すべき事項あり」のチェックボックスは、要是正の指摘がない場合でも特記すべき事項があることを指摘された項"]
[null,null,"　目があるときに「レ」マークを入れ、指摘のないときは、「指摘なし」のチェックボックスに「レ」マークを入れる。"]
[null,null,"④　２欄【調査の状況】の【イ　指摘の内容】の「要是正」のチェックボックスに「レ」マークを入れたとき（「既存不適格」"]
[null,null,"　のチェックボックスに「レ」マークを入れたときは除く。）は、【ロ　指摘の概要】に該当する調査項目（中項目又は小項"]
[null,null,"　目）をすべて記入する。"]
[null,null,"⑤　２欄【調査の状況】の【イ　指摘の内容】の「要是正」のチェックボックスに、「レ」マークを入れた当該指摘をうけた"]
[null,null,"　項目（「既存不適格」のチェックボックスに「レ」マークを入れたときは除く。）について、改善予定があるときは、【ハ"]
[null,null,"　改善予定の有無】の「有」のチェックボックスに「レ」マークを入れ、併せて改善予定年月のうち最も早いものを記入する。"]
[null,null,"　　改善予定がないときは、【ハ　改善予定の有無】の「無」のチェックボックスに「レ」マークを入れる。"]
[null,null,"⑥　３欄【石綿を添加した建築材料の調査状況】については、建築基準法第28条の２の規定の適用を受ける石綿を添加した建"]
[null,null,"　築材料について記入する。"]
[null,null,"　　【イ　該当建築材料の有無】の「有（飛散防止措置無）」又は「有（飛散防止措置有）」のチェックボックスに「レ」マ"]
[null,null,"　ークを入れたときは、当該建築材料が確認された室を記入する。"]
[null,null,"　　当該建築材料について飛散防止措置を行う予定があるときは、【ロ　措置予定の有無】の「有」のチェックボックスに"]
[null,null,"　「レ」マークを入れ、併せて措置予定年月を記入し、具体的な飛散防止措置の内容を定めている場合は、別紙に記入して添"]
[null,null,"　えること。"]
[null,null,"　　飛散防止措置を行う予定がないときは、【ロ　措置予定の有無】の「無」のチェックボックスに「レ」マークを入れる。"]
[null,null,"　　当該建築材料の材質分析が行なわれていないときは、【イ　当該建築材料の有無】のチェックボックスをすべて空欄にし"]
[null,null,"　て、【６　備考】に概要及び分析予定年月を記入する。分析予定がないときは、概要のみ記入する。"]
[null,null,"⑦　４欄【耐震診断及び耐震改修の調査状況】については、建築物の耐震改修の促進に関する法律（平成７年法律第123号）"]
[null,null,"　第２条第１項又は第２項に規定する耐震診断又は耐震改修の実施の有無について記入する。"]
[null,null,"　　【イ　耐震診断の実施の有無】の「有」のチェックボックスに「レ」マークを入れたときは、併せて（耐震性の有無）の"]
[null,null,"　当該項目のチェックボックスに「レ」マークを入れる。"]
[null,null,"　　耐震診断が行われていないときは、「無」のチェックボックスに「レ」マークを入れ、耐震診断の実施予定があるときは、"]
[null,null,"　実施予定年月を記入する。"]
[null,null,"　　対象外のときは、「対象外」のチェックボックスに「レ」マークを入れる。"]
[null,null,"　　当該建築物について耐震改修を行う予定があるときは、【ロ　耐震改修の実施の有無】の「無」のチェックボックスに"]
[null,null,"　「レ」マークを入れ、実施予定年月を記入し、具体的な耐震改修の内容を定めている場合は、別紙に記入し添付する。"]
[null,null,"　　耐震改修の実施予定がないときは、「無」のチェックボックスに「レ」マークを入れる。"]
[null,null,"　　対象外のときは、「対象外」のチェックボックスに「レ」マークを入れる。"]
[null,null,"⑧　５欄【建築物等に係る不具合等の状況】については、前回調査時以降に把握した屋根ふき材、内装材、外装材等及び広告"]
[null,null,"　塔、装飾塔その他建築物の屋外に取り付けられたものの脱落、バルコニー、屋上等の手すりその他建築物の部分の脱落、防"]
[null,null,"　火設備等の異常動作等で人身に危害を及ぼす又はその恐れがある程度のもの（以下、「不具合等」という。）について記入"]
[null,null,"　する。"]
[null,null,"　　【イ　不具合等】の「有」のチェックボックスに「レ」マークを入れたときは、併せて【ロ　不具合等の記録】の当該項"]
[null,null,"　目のチェックボックスに「レ」マークを入れる。"]
[null,null,"　　当該不具合等を受け既に改善を実施しているときは、【ハ　改善の状況】の「実施済」のチェックボックスに「レ」マー"]
[null,null,"　クを入れる。"]
[null,null,"　　当該不具合等を受け改善を行う予定があるときは、【ハ　改善の状況】の「改善予定」のチェックボックスに「レ」マー"]
[null,null,"　クを入れ、併せて改善予定年月のうち最も早いものを記入する。"]
[null,null,"　　当該不具合等を受け改善を行う予定がないときは、「予定なし」のチェックボックスに「レ」マークを入れる。"]
[null,null,"⑨　各欄に掲げられている項目以外で特に報告すべき事項については、【６　備考】又は別紙に記入し第三面の後に添付する。"]
[null,"(５)　定期調査報告書第四面（建築物等に係る不具合等の状況）関係"]
[null,null,"①　前回の調査以降に把握した建築物等に係る不具合等について、把握できる範囲において記入する。"]
[null,null,"　　前回の調査時以降不具合等を把握していない場合は、第四面を省略することができる。"]
[null,null,"②　「不具合等を把握した年月」欄は、当該不具合等を把握した年月を記入する。"]
[null,null,"③　「不具合等の概要」欄は、当該不具合等の概要を記入する。"]
[null,null,"④　「考えられる原因」欄は、当該不具合等が生じた原因として考えられるものを記入する。"]
[null,null,"⑤　「改善（予定）年月」欄は、既に改善を実施しているときは、実施年月を記入し、改善を行う予定があるときは、改善予"]
[null,null,"　定年月を記入する。"]
[null,null,"　　改善を行う予定がないときは、「－」を記入する。"]
[null,null,"⑥　「改善措置の概要等」欄は、既に改善を実施している場合又は改善を行う予定があるときは、具体的措置の概要を記入す"]
[null,null,"　る。"]
[null,null,"　　改善を行う予定がないときは、その理由を記入する。"]
[]
[]
[]
[null,"(１)　調査結果表の構成（様式その１～その６）"]
[null,null,"　調査結果表は、実際に建築物を調査し、その状況を記録して「定期調査報告書」の第三面の【２　調査の状況】に取りまと"]
[null,null,"める原書に当たるものであり、次表の大項目、中項目及び小項目、並びに具体的にチェックする細項目と改善予定状況等から"]
[null,null,"構成されている。"]
[null,null,"大項目",null,null,null,null,null,"中項目"]
[null,null,"１　敷地及び地盤",null,null,null,null,null,"(1)地盤 (2)敷地 (3)敷地内の通路等 (4)共同住宅等の主要な出入り口からの通路等"]
[null,null,null,null,null,null,null,null,"(5)窓先空地及び屋外通路 (6)塀 (7)擁壁 (8)がけ (9)敷地に直接設置した広告塔及び広告板"]
[null,null,"２　建築物の外部",null,null,null,null,null,"(1)基礎 (2)土台 (3)外壁"]
[null,null,"３　屋上及び屋根",null,null,null,null,null,"(1)屋上面 (2)屋上周り (3)屋根 (4)機器及び工作物"]
[null,null,"４　建築物の内部",null,null,null,null,null,"(1)防火区画 (2)壁の室内に面する部分 (3)床 (4)天井 (5)防火設備 (6)照明器具、懸垂物等"]
[null,null,null,null,null,null,null,null,"(7)警報設備 (8)居室の採光及び換気 (9)石綿等を添加した建築材料"]
[null,null,"５　避難施設等",null,null,null,null,null,"(1)令第１２０条第２項に規定する通路等 (2)廊下 (3)出入口等 (4)屋上広場"]
[null,null,null,null,null,null,null,null,"(5)避難上有効なバルコニー (6)階段 (7)排煙設備等 (8)その他の設備等"]
[null,null,"６　その他",null,null,null,null,null,"(1)地下街等 (2)特殊な構造等 (3)避雷設備 (4)煙突 (5)自動回転ドア"]
[null,"(２)　記載方法"]
[null,null,"①　この書類は、一の建築物（棟）ごとに、当該建築物の（敷地及び地盤）、（建築物の外部）、（屋上及び屋根）、（建築"]
[null,null,"　物の内部）、（避難施設等）及び（その他）に関する調査の結果について作成する。"]
[null,null,"②　記入欄が不足する場合については、枠を拡大又は行を追加して記入するか、若しくは別紙に必要な事項を記入して添付す"]
[null,null,"　る。"]
[null,null,"③　「当該調査に関与した調査者」欄は、定期調査報告書（東京都建築基準法施行細則別記第４号様式）の第一面の【３　調"]
[null,null,"　査者】欄に記入した調査者について記入する。"]
[null,null,"　　「調査者番号」欄については、調査者を特定できる番号、記号等を記入する。"]
[null,null,"　　なお、当該建築物の調査を行った調査者が１人の場合は、番号、記号等を記入しなくても構わない。"]
[null,null,"　　また、当該建築物の調査を行った調査者が１人の場合は、「その他の調査者」欄を削除しても構わない。"]
[null,null,"④　調査対象の建築物及びその敷地について、「東京都建築基準法施行細則による調査の項目等（東京都告示第４４３号）"]
[null,null,"　表（い）調査項目」欄により調査が必要となる「調査項目」を選定し、「適用の有無」欄に「○」を入れる。"]
[null,null,"　（注）「東京都建築基準法施行細則による調査の項目等（東京都告示第４４３号）」の表については、当センターのホーム"]
[null,null,"　　　　ページに掲載されている「特定建築物定期調査報告の調査項目・調査方法・判定基準について（ＰＤＦ版）」を参照"]
[null,null,"　　　　してください。"]
[null,null,"⑤　「調査結果表」の各調査項目中、当該欄において、「東京都建築基準法施行細則による調査の項目等（東京都告示第４４"]
[null,null,"　３号）表（は）判定基準」欄に適合していないことが指摘された項目があるときは、「要是正」の欄に、当該項目のすべて"]
[null,null,"　について建築基準法第３条第２項の規定の適用を受けているものであることが確認されたときは、併せて「既存不適格」の"]
[null,null,"　欄に「○」マークを入れる。"]
[null,null,"　　「特記事項」の欄は、要是正の指摘がない場合でも特記すべき事項があることを指摘された項目があるときに「○」マー"]
[null,null,"　クを入れる。"]
[null,null,"　　また、「適用の有無」欄に「○」を入れたもので問題が無いものについては、「指摘なし」の欄に「○」を入れる。"]
[null,null,"⑥　「調査結果表」の各調査項目中、「調査結果等」欄の「要是正」、「既存不適格」及び「特記事項」の欄に「○」マーク"]
[null,null,"　を入れたときは、指摘の内容を該当する「要是正事項（既存不適格を含む。）又は特記事項の具体的内容」欄に記入する。"]
[null,null,"⑦　「担当調査者番号」欄は、「調査者番号」欄に記入した番号、記号等を記入する。"]
[null,null,"　　なお、当該建築物の調査を行った調査者が１人の場合は、記入しなくて構わない。"]
[null,null,"⑧　「その他確認事項」は、法第12条第3項の規定による検査を要する随時閉鎖又は作動ができる防火設備の設置の有無を確"]
[null,null,"　　認し、該当するチェックボックスに「レ」マークを入れてください。「有」の場合は、当該防火設備が設置されている階"]
[null,null,"　　を記入してください。"]
[null,null,"⑨　「改善予定状況等」は、調査の結果、「要是正」又は「特記事項」欄に「○」マークがある場合に記入する。"]
[null,null,"　　改善済の場合は、「改善策の具体的内容又は改善できない理由」欄にその内容を記入し、併せて「改善（予定）年月」欄"]
[null,null,"　に当該年月を記入する。"]
[null,null,"　　改善策が明らかになっている場合は、「改善策の具体的内容又は改善できない理由」欄にその内容を記入し、併せて「改"]
[null,null,"　善（予定）年月」欄に当該年月を括弧書きで記入する。"]
[null,null,"　　改善できない理由がある場合は、「改善策の具体的内容又は改善できない理由」欄にその内容を記入する。"]
[null,null,"　　（注）「既存不適格」の指摘については、記入しない。"]
[null,null,"⑩　配置図及び各階平面図を別添１の様式に従い添付し、指摘（特記すべき事項を含む。）のあった個所や撮影した写真の位　"]
[null,null,"　　置等を明記してください。"]
[null,null,"⑪　要是正とされた調査項目（既存不適格の場合を除く。）については、要是正とされた部分を撮影した写真を別添２の様式"]
[null,null,"　　に従い添付してください。"]
[null,null,"⑫　付近見取図を添付してください。"]
[]
[]
[]
[null,"（１）この書類は、建築基準法第93条の２（書類の閲覧）及び同法施行規則第５条第３項（建築物の定期報告）の改正に伴い、定"]
[null,"　　期報告に関する書類が新たに閲覧の対象となり、施行日（平成17年６月１日）以降に、受付機関（当センター）に提出される"]
[null,"　　定期調査報告については、この「定期調査報告概要書(第36号の３様式)」の提出（１部）が必要となる。"]
[null,"（２）記載方法は、記入すべき項目が「定期調査報告書」とほぼ同様なので、３「定期調査報告書」の記載方法を参照のこと。"]
[null,"（３）アスベスト・耐震改修にかかる報告内容の概要書への記載方法及び記載すべき内容。"]
[null,"　　　調査報告書第三面の【３　石綿を添加した建築材料の調査状況】及び【４　耐震診断及び耐震改修の調査状況】の記載内容"]
[null,"　　を過不足なく、定期調査報告概要書第一面【５．調査による指摘の概要】欄の【ニ．その他特記事項】に記載すること。"]
[null,"　　　【ニ．その他特記事項】欄に書ききれない場合は、概要書第一面【５．調査による指摘の概要】欄の【ニ．その他特記事項】"]
[null,"　　へ（その他 第二面【７．備考】参照）と記載して、概要書第二面【７．備考】欄に記載すること。"]
[null,"　　★記載すべき内容及び記載方法"]
[null,"（１）「石綿を添加した建築材料の調査状況」"]
[null,"　　イ．吹付け石綿等が使用されている場合"]
[null,"　　　①飛散防止措置有の場合：「○○室に吹付け石綿等有（飛散防止措置有）」と記載する。"]
[null,"　　　②飛散防止措置無の場合：「○○室に吹付け石綿等有（飛散防止措置無）（平成○年○月に措置予定有）」"]
[null,"　　　　　　　　　　　　　　：「○○室に吹付け石綿等有（飛散防止措置無）（措置予定未定）」のいづれかを記載する。"]
[null,"　　ロ．吹付け材があるが未分析の場合：「○○室の吹付け材、石綿含有の有無未分析」と記載する。　　"]
[null,"　　　（ロの場合、報告書第三面【３　石綿を添加した建築材料の調査状況】は空欄とし、報告書第三面【６　備考】欄に上記の"]
[null,"　　　文言を記載する。）"]
[null,"　　　（イ及びロの場合は、「概要書第一面【５．調査による指摘の概要】の【ニ．その他特記事項】」欄に上記文言のいづれか"]
[null,"　　　を記載する。）"]
[null,"（２）「耐震診断及び耐震改修の調査状況」"]
[null,"　　イ．耐震診断について"]
[null,"　　　①耐震診断実施有の場合：「耐震診断実施有（耐震性有）」※"]
[null,"　　　　　　　　　　　　　　：「耐震診断実施有（耐震性無）」"]
[null,"　　　　　　　　　　　　　　：「耐震診断実施有（耐震性不明）」のいづれかを記載する。"]
[null,"　　　②耐震診断実施無の場合：「耐震診断実施無（平成○年○月に耐震診断予定有）」"]
[null,"　　　　　　　　　　　　　　：「耐震診断実施無（耐震診断予定未定）」のいづれかを記載する。"]
[null,"　　ロ．耐震改修について（イ．耐震診断について　①の※を除いて、下記のいづれかを記載する。）"]
[null,"　　　①耐震改修実施有の場合：「耐震改修実施有」"]
[null,"　　　②耐震改修実施無の場合：「耐震改修実施無（平成○年○月に耐震改修予定有）」"]
[null,"　　　　　　　　　　　　　　：「耐震改修実施無（耐震改修予定未定）」のいづれかを記載する。"]
[null,"　　　（イ及びロの場合は、「概要書第一面【５．調査による指摘の概要】の【ニ．その他特記事項】」欄に上記文言のいづれか"]
[null,"　　　を記載する。）"]

{"sheet":"報告書第一面","index":2,"n_rows":60,"n_cols":31,"rows_kept":60,"cut":false,"hidden":false,"merged":[[55,1,55,2],[55,3,55,12],[55,13,58,13],[55,14,58,24],[55,25,58,25],[56,1,56,2],[56,3,56,12],[57,1,57,2],[57,3,57,12],[58,1,58,2],[58,3,58,12],[48,17,48,30],[52,16,52,17],[43,8,43,30],[55,26,58,27],[55,28,58,28],[55,29,58,30],[12,8,12,30],[32,25,32,29],[30,8,30,30],[13,8,13,30],[15,8,15,30],[16,8,16,30],[17,8,17,30],[22,9,22,10],[24,8,24,30],[25,8,25,30],[26,8,26,30],[32,9,32,10],[32,17,32,19],[27,25,27,29],[28,8,28,11],[29,8,29,30],[23,25,23,29],[27,9,27,10],[27,17,27,19],[35,8,35,30],[18,8,18,30],[19,8,19,30],[22,25,22,29],[34,8,34,30],[33,25,33,29],[22,17,22,19],[0,24,0,25],[0,29,0,30],[0,11,0,19],[1,0,1,30],[11,8,11,30],[2,0,2,30],[3,1,3,7],[5,7,5,29],[7,7,7,29],[5,3,5,6],[7,3,7,6],[9,8,9,30],[10,8,10,30],[3,23,3,24],[72,1,72,3],[69,1,69,3],[36,8,36,30],[38,8,38,11],[39,8,39,30],[42,8,42,30],[37,25,37,29],[37,9,37,10],[37,17,37,19],[44,8,44,30],[40,8,40,30],[45,8,45,30],[50,12,50,30],[53,14,53,30],[49,7,49,30],[51,7,51,30]]}
["第４号様式（第11条関係）",null,null,null,null,null,null,null,null,null,null,"定期調査報告書",null,null,null,null,null,null,null,null,null,null,null,"整理番号",null,null,"－",null,"－"]
["（第一面）"]
["　建築基準法第12条第１項の規定による定期調査の結果を報告します。この報告書に記載の事項は、事実に相違ありません。"]
[null,null,null,null,null,null,null,null,"殿",null,null,null,null,null,null,null,null,null,null,null,null,null,null,null,null,null,"年",null,"月",null,"日"]
[]
[null,null,null,"報告者氏名"]
[null,null,null,"(所有者（管理者がある場合は管理者））"]
[null,null,null,"調査者氏名"]
["【１　所有者】"]
[null,"【イ　氏名のフリガナ】"]
[null,"【ロ　氏名】"]
[null,"【ハ　郵便番号】"]
[null,"【ニ　住所】"]
[null,"【ホ　電話番号】"]
["【２　管理者】"]
[null,"【イ　氏名のフリガナ】"]
[null,"【ロ　氏名】"]
[null,"【ハ　郵便番号】"]
[null,"【ニ　住所】"]
[null,"【ホ　電話番号】"]
["【３　調査者】"]
[null,"(代表となる調査者）"]
[null,"【イ　資格】",null,null,null,null,null,null,"(",null,null,")建築士",null,null,null,null,"（",null,null,null,"）登録",null,null,null,"第",null,null,null,null,null,"号"]
[null,null,null,null,null,null,null,null,"特定建築物調査員",null,null,null,null,null,null,null,"  　　　",null,null,null,null,null,null,null,"第",null,null,null,null,null,"号"]
[null,"【ロ　氏名のフリガナ】"]
[null,"【ハ　氏名】"]
[null,"【ニ　勤務先】"]
[null,null,null,null,null,null,null,null,"(",null,null,")建築士事務所",null,null,null,null,"（",null,null,null,"）知事登録",null,null,null,"第",null,null,null,null,null,"号"]
[null,"【ホ　郵便番号】"]
[null,"【ヘ　所在地】"]
[null,"【ト　電話番号】"]
[null,"(その他の調査者）"]
[null,"【イ　資格】",null,null,null,null,null,null,"(",null,null,")建築士",null,null,null,null,"（",null,null,null,"）登録",null,null,null,"第",null,null,null,null,null,"号"]
[null,null,null,null,null,null,null,null,"特定建築物調査員",null,null,null,null,null,null,"  　　　",null,null,null,null,null,null,null,null,"第",null,null,null,null,null,"号"]
[null,"【ロ　氏名のフリガナ】"]
[null,"【ハ　氏名】"]
[null,"【ニ　勤務先】"]
[null,null,null,null,null,null,null,null,"(",null,null,")建築士事務所",null,null,null,null,"（",null,null,null,"）知事登録",null,null,null,"第",null,null,null,null,null,"号"]
[null,"【ホ　郵便番号】"]
[null,"【ヘ　所在地】"]
[null,"【ト　電話番号】"]
["【４　報告対象建築物】"]
[null,"【イ　所在地】"]
[null,"【ロ　名称のフリガナ】"]
[null,"【ハ　名称】"]
[null,"【ニ　用途】"]
["【５　調査による指摘の概要】"]
[null,"【イ　指摘の内容】",null,null,null,null,null,null,"要是正の指摘あり",null,null,null,null,"（",null,"既存不適格）",null,null,null,null,"特記すべき事項あり",null,null,null,null,null,null,"指摘なし"]
[null,"【ロ　指摘の概要】",null,null,null,null,null,"（要是正（既存不適格を除く。))"]
[]
[null,null,null,null,null,null,null,"（既存不適格）"]
[]
[null,"【ハ　改善予定の有無】(要是正のみ記入)",null,null,null,null,null,null,null,null,null,null,null,null,null,"有（","令和",null,null,"年",null,"月に改善予定）",null,null,null,null,null,"無"]
[null,"【ニ　その他特記事項】(特記事項のみ記入)"]
["【報告書(写)返送先】"]
[null,"〒",null,null,null,null,null,null,null,null,null,null,null,"※受付欄",null,null,null,null,null,null,null,null,null,null,null,"※記事欄",null,null,"※判定欄"]
[null,"住所"]
[null,"名称"]
[null,"電話"]
[null,null,null,null,null,null,null,null,null,null,null,null,null,null,null,null,null,null,null,null,null,null,null,null,null,null,null,null,null,null,"（日本産業規格Ａ列４番）"]

{"sheet":"報告書第二面","index":3,"n_rows":57,"n_cols":28,"rows_kept":57,"cut":false,"hidden":false,"merged":[[27,14,27,15],[28,11,28,15],[13,6,13,8],[18,4,18,6],[14,11,14,16],[15,11,15,16],[16,11,16,16],[14,4,14,6],[15,6,15,8],[17,6,17,8],[16,4,16,6],[17,18,17,21],[18,18,18,21],[14,23,14,26],[16,23,16,26],[18,23,18,26],[16,18,16,21],[0,1,0,27],[11,16,11,22],[8,7,8,8],[8,14,8,15],[8,21,8,22],[3,20,3,23],[4,6,4,27],[7,20,7,25],[8,9,8,10],[8,16,8,17],[8,23,8,24],[9,8,9,12],[10,8,10,12],[11,8,11,12],[11,23,11,26],[12,10,12,17],[13,11,13,16],[19,18,19,21],[20,18,20,21],[26,25,26,26],[22,23,22,26],[12,23,12,27],[12,18,12,22],[25,11,25,16],[17,11,17,16],[18,11,18,16],[13,18,13,21],[24,11,24,16],[20,23,20,26],[14,18,14,21],[15,18,15,21],[24,18,24,21],[25,18,25,21],[21,6,21,8],[19,11,19,16],[20,11,20,16],[21,11,21,16],[22,11,22,16],[23,11,23,16],[19,6,19,8],[20,4,20,6],[21,18,21,21],[22,18,22,21],[23,18,23,21],[33,5,33,6],[34,5,34,6],[31,16,31,26],[32,16,32,26],[33,16,33,26],[34,16,34,26],[31,5,31,6],[34,13,34,14],[31,13,31,14],[32,13,32,14],[33,13,33,14],[32,5,32,6],[45,11,45,12],[45,22,45,26],[42,18,42,26],[38,11,38,12],[38,22,38,26],[41,11,41,12],[41,22,41,26],[39,18,39,26],[44,16,44,17],[55,4,55,27],[50,11,50,12],[50,22,50,26],[51,11,51,12],[51,22,51,26],[54,4,54,27],[49,18,49,26],[47,16,47,17],[48,11,48,12],[48,22,48,26],[46,18,46,26]]}
[null,"（第二面）"]
[null,"建築物及びその敷地に関する事項"]
[null,"【１　敷地の位置】"]
[null,null,"【イ　防火地域等】",null,null,null,"□","防火地域",null,null,null,null,"準防火地域",null,null,null,null,null,null,"その他（",null,null,null,null,"）",null,"指定なし"]
[null,null,"【ロ　用途地域】"]
[null,"【２　建築物及びその敷地の概要】"]
[null,null,"【イ　構造】",null,null,null,null,"鉄筋コンクリート造",null,null,null,null,null,null,null,null,null,"鉄骨鉄筋コンクリート造"]
[null,null,null,null,null,null,null,"鉄骨造",null,null,null,null,null,null,null,null,null,"その他（",null,null,null,null,null,null,null,null,"）"]
[null,null,"【ロ　階数】",null,null,null,null,"地上",null,null,null,"階",null,null,"地下",null,null,null,"階",null,null,"塔屋",null,null,null,"階"]
[null,null,"【ハ　敷地面積】",null,null,null,null,null,null,null,null,null,null,"㎡"]
[null,null,"【ニ　建築面積】",null,null,null,null,null,null,null,null,null,null,"㎡"]
[null,null,"【ホ　延べ面積】",null,null,null,null,null,null,null,null,null,null,"㎡",null,"（","今回報告部分の床面積の合計",null,null,null,null,null,null,null,null,null,null,"㎡）"]
[null,"【３　階別用途別床面積】",null,null,null,null,null,null,null,null,"用途",null,null,null,null,null,null,null,"床面積",null,null,null,null,"階別床面積の合計"]
[null,null,"【イ　階別用途別】",null,null,"（",null,null,null,"階）","（",null,null,null,null,null,null,")（",null,null,null,null,"㎡)"]
[null,null,null,null,null,null,null,null,"　　　　",null,"（",null,null,null,null,null,null,")（",null,null,null,null,"㎡)（",null,null,null,null,"㎡)"]
[null,null,null,null,null,"（",null,null,null,"階）","（",null,null,null,null,null,null,")（",null,null,null,null,"㎡)"]
[null,null,null,null,null,null,null,null,"　　　　",null,"（",null,null,null,null,null,null,")（",null,null,null,null,"㎡)（",null,null,null,null,"㎡)"]
[null,null,null,null,null,"（",null,null,null,"階）","（",null,null,null,null,null,null,")（",null,null,null,null,"㎡)"]
[null,null,null,null,null,null,null,null,null,null,"（",null,null,null,null,null,null,")（",null,null,null,null,"㎡)（",null,null,null,null,"㎡)"]
[null,null,null,null,null,"（",null,null,null,"階）","（",null,null,null,null,null,null,")（",null,null,null,null,"㎡)"]
[null,null,null,null,null,null,null,null,null,null,"（",null,null,null,null,null,null,")（",null,null,null,null,"㎡)（",null,null,null,null,"㎡)"]
[null,null,null,null,null,"（",null,null,null,"階）","（",null,null,null,null,null,null,")（",null,null,null,null,"㎡)"]
[null,null,null,null,null,null,null,null,null,null,"（",null,null,null,null,null,null,")（",null,null,null,null,"㎡)（",null,null,null,null,"㎡)"]
[null,null,"【ロ　用途別】",null,null,null,null,null,null,null,"（",null,null,null,null,null,null,")（",null,null,null,null,"㎡)"]
[null,null,null,null,null,null,null,null,null,null,"（",null,null,null,null,null,null,")（",null,null,null,null,"㎡)"]
[null,null,null,null,null,null,null,null,null,null,"（",null,null,null,null,null,null,")（",null,null,null,null,"㎡)"]
[null,"【４　性能検証法等の適用】",null,null,null,null,null,null,"耐火性能検証法",null,null,null,null,null,null,"防火区画検証法",null,null,null,"区画避難安全検証法（",null,null,null,null,null,null,null,"階）"]
[null,null,null,null,null,null,null,null,"階避難安全検証法",null,null,null,null,"（",null,null,"階）",null,null,"全館避難安全検証法"]
[null,null,null,null,null,null,null,null,"その他",null,"（",null,null,null,null,null,"）",null,null,"適用なし"]
[null,"【５　検査対象建築設備】",null,null,null,null,null,"防火設備",null,null,null,"換気設備",null,null," 排煙設備",null,null,null,null,null,null,"非常用照明装置",null,null,null,null,null,"給水設備・排水設備"]
[null,"【６　増築、改築、用途変更等の経過】"]
[null,null,null,null,null,null,null,null,"年",null,"月",null,"日","概要",null,"（",null,null,null,null,null,null,null,null,null,null,null,"）"]
[null,null,null,null,null,null,null,null,"年",null,"月",null,"日","概要",null,"（",null,null,null,null,null,null,null,null,null,null,null,"）"]
[null,null,null,null,null,null,null,null,"年",null,"月",null,"日","概要",null,"（",null,null,null,null,null,null,null,null,null,null,null,"）"]
[null,null,null,null,null,null,null,null,"年",null,"月",null,"日","概要",null,"（",null,null,null,null,null,null,null,null,null,null,null,"）"]
[null,"【７　関連図書の整備状況】"]
[null,null,"【イ　確認に要した図書】",null,null,null,null,null,null,"有 (",null,"各階平面図あり）",null,null,null,null,null,"無"]
[null,null,"【ロ　初回確認済証】",null,null,null,null,null,null,"有 ",null,null,"無"]
[null,null,null,null,null,"交付番号",null,null,null,null,null,null,null,null,"年",null,"月",null,"日",null,null,"第",null,null,null,null,null,"号"]
[null,null,null,null,null,"交付者",null,null,null,"建築主事",null,null,null,null,null,null,null,"指定確認検査機関（",null,null,null,null,null,null,null,null,null,"）"]
[null,null,"【ハ　直近確認済証】",null,null,null,null,null,null,"有",null,null,"無"]
[null,null,null,null,null,"交付番号",null,null,null,null,null,null,null,null,"年",null,"月",null,"日",null,null,"第",null,null,null,null,null,"号"]
[null,null,null,null,null,"交付者",null,null,null,"建築主事",null,null,null,null,null,null,null,"指定確認検査機関（",null,null,null,null,null,null,null,null,null,"）"]
[null,null,"【ニ　完了検査に要した図書】",null,null,null,null,null,null,"有",null,null,"無"]
[null,null,"【ホ　初回検査済証】",null,null,null,null,null,null,"有",null,null,"無",null,null,"（完了年月",null,null,null,"年",null,"月）"]
[null,null,null,null,null,"交付番号",null,null,null,null,null,null,null,null,"年",null,"月",null,"日",null,null,"第",null,null,null,null,null,"号"]
[null,null,null,null,null,"交付者",null,null,null,"建築主事",null,null,null,null,null,null,null,"指定確認検査機関（",null,null,null,null,null,null,null,null,null,"）"]
[null,null,"【ヘ　直近検査済証】",null,null,null,null,null,null,"有",null,null,"無",null,null,"（完了年月",null,null,null,"年",null,"月）"]
[null,null,null,null,null,"交付番号",null,null,null,null,null,null,null,null,"年",null,"月",null,"日",null,null,"第",null,null,null,null,null,"号"]
[null,null,null,null,null,"交付者",null,null,null,"建築主事",null,null,null,null,null,null,null,"指定確認検査機関（",null,null,null,null,null,null,null,null,null,"）"]
[null,null,"【ト　直近の仮使用】",null,null,null,"交付番号",null,null,null,null,null,null,null,"年",null,"月",null,"日",null,null,"第",null,null,null,null,null,"号"]
[null,null,"【チ　全体計画認定】",null,null,null,"交付番号",null,null,null,null,null,null,null,"年",null,"月",null,"日",null,null,"第",null,null,null,null,null,"号"]
[null,null,"【リ　維持保全に関する準則又は計画】",null,null,null,null,null,null,null,null,null,"有",null,null,"無"]
[null,null,"【ヌ　前回の調査に関する書類の写し】",null,null,null,null,null,null,null,null,null,"有",null,null,"無",null,null,"対象外"]
[null,"【８　備考】"]
[]
[null,null,null,null,null,null,null,null,null,null,null,null,null,null,null,null,null,null,null,null,null,null,null,null,null,null,null,"（日本産業規格Ａ列４番）"]

{"sheet":"報告書第三面","index":4,"n_rows":59,"n_cols":38,"rows_kept":59,"cut":false,"hidden":false,"merged":[[0,1,0,38],[1,1,1,5],[11,10,11,37],[16,10,16,37],[19,1,19,9],[9,1,9,9],[14,1,14,9],[4,13,4,14],[5,13,5,14],[6,13,6,14],[7,13,7,14],[5,26,5,27],[3,13,3,14],[6,26,6,27],[7,26,7,27],[12,13,12,14],[57,2,57,37],[24,1,24,9],[26,10,26,37],[29,1,29,9],[31,10,31,37],[47,26,47,27],[34,1,34,4],[36,10,36,37],[41,21,41,32],[42,21,42,32],[44,14,44,15],[37,13,37,14],[32,13,32,14],[53,20,53,21],[49,18,49,19],[48,15,48,16],[22,13,22,14],[17,13,17,14],[27,13,27,14],[56,2,56,37],[21,10,21,37]]}
[null,"（第三面）"]
[null,"調査等の概要"]
[null,"【１　調査及び検査の状況】"]
[null,null,"【イ　今回の調査】",null,null,null,null,null,null,null,null,null,null,null,null,"年",null,"月",null,"日実施"]
[null,null,"【ロ　前回の調査】",null,null,null,null,null,null,null,null,null,"実施（",null,null,"年",null,"月",null,"日報告）",null,null,null,null,null,"未実施　"]
[null,null,"【ハ　防火設備の検査】",null,null,null,null,null,null,null,null,null,"実施（",null,null,"年",null,"月",null,"日報告）",null,null,null,null,null,"未実施（",null,null,"年",null,"月に実施予定）",null,null,null,null,null,"対象外"]
[null,null,"【ニ　建築設備の検査】",null,null,null,null,null,null,null,null,null,"実施（",null,null,"年",null,"月",null,"日報告）",null,null,null,null,null,"未実施（",null,null,"年",null,"月に実施予定）",null,null,null,null,null,"対象外"]
[null,null,"【ホ　昇降機等の検査】",null,null,null,null,null,null,null,null,null,"実施（",null,null,"年",null,"月",null,"日報告）",null,null,null,null,null,"未実施（",null,null,"年",null,"月に実施予定）",null,null,null,null,null,"対象外"]
[null,"【２　調査の状況】"]
[null,"（敷地及び地盤）"]
[null,null,"【イ　指摘の内容】",null,null,null,null,null,null,null,null,"要是正の指摘あり　（",null,null,null,null,null,null,null,"既存不適格）",null,null,null,null,null,"特記すべき事項あり",null,null,null,null,null,null,null,"指摘なし"]
[null,null,"【ロ　指摘の概要】"]
[null,null,"【ハ　改善予定の有無】",null,null,null,null,null,null,null,null,null,"有（",null,null,null,"年",null,"月に改善予定）"]
[null,null,null,null,null,null,null,null,null,null,null,null,"無　"]
[null,"（建築物の外部）"]
[null,null,"【イ　指摘の内容】",null,null,null,null,null,null,null,null,"要是正の指摘あり　（",null,null,null,null,null,null,null,"既存不適格）",null,null,null,null,null,"特記すべき事項あり",null,null,null,null,null,null,null,"指摘なし"]
[null,null,"【ロ　指摘の概要】"]
[null,null,"【ハ　改善予定の有無】",null,null,null,null,null,null,null,null,null,"有（",null,null,null,"年",null,"月に改善予定）"]
[null,null,null,null,null,null,null,null,null,null,null,null,"無　"]
[null,"（屋上及び屋根）"]
[null,null,"【イ　指摘の内容】",null,null,null,null,null,null,null,null,"要是正の指摘あり　（",null,null,null,null,null,null,null,"既存不適格）",null,null,null,null,null,"特記すべき事項あり",null,null,null,null,null,null,null,"指摘なし"]
[null,null,"【ロ　指摘の概要】"]
[null,null,"【ハ　改善予定の有無】",null,null,null,null,null,null,null,null,null,"有（",null,null,null,"年",null,"月に改善予定）"]
[null,null,null,null,null,null,null,null,null,null,null,null,"無　"]
[null,"（建築物の内部）"]
[null,null,"【イ　指摘の内容】",null,null,null,null,null,null,null,null,"要是正の指摘あり　（",null,null,null,null,null,null,null,"既存不適格）",null,null,null,null,null,"特記すべき事項あり",null,null,null,null,null,null,null,"指摘なし"]
[null,null,"【ロ　指摘の概要】"]
[null,null,"【ハ　改善予定の有無】",null,null,null,null,null,null,null,null,null,"有（",null,null,null,"年",null,"月に改善予定）"]
[null,null,null,null,null,null,null,null,null,null,null,null,"無　"]
[null,"（避難施設等）"]
[null,null,"【イ　指摘の内容】",null,null,null,null,null,null,null,null,"要是正の指摘あり　（",null,null,null,null,null,null,null,"既存不適格）",null,null,null,null,null,"特記すべき事項あり",null,null,null,null,null,null,null,"指摘なし"]
[null,null,"【ロ　指摘の概要】"]
[null,null,"【ハ　改善予定の有無】",null,null,null,null,null,null,null,null,null,"有（",null,null,null,"年",null,"月に改善予定）"]
[null,null,null,null,null,null,null,null,null,null,null,null,"無　"]
[null,"（その他）"]
[null,null,"【イ　指摘の内容】",null,null,null,null,null,null,null,null,"要是正の指摘あり　（",null,null,null,null,null,null,null,"既存不適格）",null,null,null,null,null,"特記すべき事項あり",null,null,null,null,null,null,null,"指摘なし"]
[null,null,"【ロ　指摘の概要】"]
[null,null,"【ハ　改善予定の有無】",null,null,null,null,null,null,null,null,null,"有（",null,null,null,"年",null,"月に改善予定）"]
[null,null,null,null,null,null,null,null,null,null,null,null,"無　"]
[null,null,"（注：ロ　指摘の概要については、既存不適格を除く要是正の指摘事項のみについて記載のこと。）"]
[null,"【３　石綿を添加した建築材料の調査状況】",null,null,null,null,null,null,null,null,null,null,null,null,null,null,null,null,null,null,null,null,"（該当する室）"]
[null,null,"【イ　該当建築材料の有無】",null,null,null,null,null,null,null,null,null,"有（飛散防止措置　無）",null,null,null,null,null,null,null,"(",null,null,null,null,null,null,null,null,null,null,null,null,")"]
[null,null,null,null,null,null,null,null,null,null,null,null,"有（飛散防止措置　有）",null,null,null,null,null,null,null,"(",null,null,null,null,null,null,null,null,null,null,null,null,")"]
[null,null,null,null,null,null,null,null,null,null,null,null,"無"]
[null,null,"【ロ　措置予定の有無】",null,null,null,null,null,null,null,null,null,"有（",null,null,null,null,"年",null,"月に改善予定）"]
[null,null,null,null,null,null,null,null,null,null,null,null,"無"]
[null,"【４　耐震診断及び耐震改修の調査状況】"]
[null,null,"【イ　耐震診断の実施の有無】",null,null,null,null,null,null,null,null,null,null,"有（耐震性の有無",null,null,null,null,null,null,"有",null,null,"無",null,null,"不明）"]
[null,null,null,null,null,null,null,null,null,null,null,null,null,"無（",null,null,null,null,"年",null,"月に実施予定）",null,null,null,null,null,"対象外"]
[null,null,"【ロ　耐震改修の実施の有無】",null,null,null,null,null,null,null,null,null,null,"有",null,null,"無（",null,null,null,null,"年",null,"月に実施予定）",null,null,null,null,null,"対象外"]
[null,"【５　建築物等に係る不具合等の状況】"]
[null,null,"【イ　不具合等】",null,null,null,null,null,null,null,null,"有",null,null,"無"]
[null,null,"【ロ　不具合等の記録】",null,null,null,null,null,null,null,null,"有",null,null,"無"]
[null,null,"【ハ　改善の状況】",null,null,null,null,null,null,null,null,"実施済",null,null,null,null,null,null,null,"改善予定 （",null,null,null,"年",null,"月に改善予定）"]
[null,null,null,null,null,null,null,null,null,null,null,"予定なし"]
[null,"【６　備考】"]
[]
[]
[null,null,null,null,null,null,null,null,null,null,null,null,null,null,null,null,null,null,null,null,null,null,null,null,null,null,null,null,null,null,null,null,null,null,null,null,null,"（日本産業規格Ａ列４番）"]

{"sheet":"報告書第四面","index":5,"n_rows":40,"n_cols":6,"rows_kept":40,"cut":false,"hidden":false,"merged":[[0,1,0,5],[28,2,28,12],[29,2,29,12]]}
[null,"(第四面）"]
[null,"建築物等に係る不具合等の状況"]
[]
[null,"不具合等を把握した年月","不具合等の概要","考えられる原因","改善(予定)年月","改善措置の概要等"]
[]
[]
[]
[]
[]
[]
[]
[null,"（注意）"]
[null,"１ 各面共通関係"]
[null,"① ※印のある欄は、記入しないでください。"]
[null,"② 数字は算用数字を、単位はメートル法を用いてください。"]
[null,"③ 記入欄が不足する場合は、枠を拡大、行を追加して記入するか、別紙に必要な事項を記入し添えてください。"]
[]
[]
[]
[]
[]
[]
[]
[]
[]
[]
[]
[]
[]
[]
[]
[]
[]
[]
[]
[]
[]
[]
[]
[null,null,null,null,null,"（日本産業規格Ａ列４番）"]

{"sheet":"調査結果表その１","index":6,"n_rows":38,"n_cols":14,"rows_kept":38,"cut":false,"hidden":false,"merged":[[26,1,27,4],[21,1,22,4],[7,13,9,13],[8,8,9,8],[8,10,9,10],[8,11,9,12],[26,11,27,12],[25,11,25,12],[23,11,24,12],[21,11,22,12],[25,1,25,4],[23,1,24,4],[0,0,0,13],[3,11,3,13],[4,11,4,13],[5,11,5,13],[4,4,4,10],[5,4,5,10],[4,3,5,3],[2,4,2,10],[1,0,1,3],[2,0,5,2],[2,11,2,13],[3,4,3,10],[34,1,36,2],[32,1,33,4],[28,11,28,12],[34,3,36,4],[34,11,36,12],[29,1,29,13],[30,11,31,12],[28,1,28,5],[32,11,33,12],[30,1,31,4],[7,0,9,0],[7,1,9,5],[12,1,12,4],[18,1,20,4],[10,1,10,13],[7,7,7,12],[13,11,15,12],[16,11,17,12],[18,11,20,12],[8,7,9,7],[12,11,12,12],[11,1,11,4],[7,6,9,6],[13,1,15,4],[16,1,17,4],[11,11,11,12]]}
["調査結果表"]
["様式　その１"]
["当該調査に関与した調査者",null,null,null,"氏　名",null,null,null,null,null,null,"調査者番号"]
[null,null,null,"代表となる　　　　　　　　　　　　　　　　　　　　　　　　　　　　　　　　　　　　　　　　　　　　　　　　　　　　　　　　　　　　　　　　　　　　　　　　　　　　　　　　　　　　　　　　　　　　　　　　　　　　　　　　　　　　　　　　　調査者"]
[null,null,null,"その他の　　　　　　　　　　　　　　　　　　　　　　　　　　　　　　　　　　　　　　　　　　　　　　　　　　　　　　　　　　　　　　　　　　　　　　　　　　　　　　　　　　　　　　　　　　　　　　　　　　　　　　　　　　　　　　　　調査者"]
[]
[]
["番号","調　査　項　目",null,null,null,null,"適用の有無","調査結果等",null,null,null,null,null,"担当調査者番号"]
[null,null,null,null,null,null,null,"指摘なし","要是正",null,"特記事項","要是正事項　　　　　　　　　　　　　　　　　　　　　　　　　　　　　　　　　　　　　　　　　　　　　　　　　　　　　　　　　　　　　　　　　　　　　　　　　　　　　　　　　　　　　　　　　　　　　　　　　　　　　　　　　　　　　　　　　　　　　　　　　　　　　　　　　　　　　　　　　　　　　　　　　　　（既存不適格を含む）\n又は特記事項の\n具体的内容　　　　　　　　　　　　　　　　　　　　　　　　　　　　　　　　　　　　　　　　　　　　　　　　　　　　　　　　　　　　　　　　　　　　　　　　　　　　　　　　　　　　　　　　　　　　"]
[null,null,null,null,null,null,null,null,null,"既存不適格"]
["１","敷地及び地盤"]
["(1)","地盤",null,null,null,"地盤沈下等による不陸、傾斜等の状況"]
["(2)","敷地",null,null,null,"敷地内の排水の状況"]
["(3)","敷地内の通路等",null,null,null,"敷地内の通路等の確保の状況"]
["(4)",null,null,null,null,"有効幅員の確保の状況"]
["(5)",null,null,null,null,"敷地内の通路等の支障物の状況"]
["(6)","共同住宅等の主要な出入り口からの通路等",null,null,null,"通路等の確保の状況"]
["(7)",null,null,null,null,"通路等の支障物の状況"]
["(8)","窓先空地及び屋外通路",null,null,null,"窓先空地の確保の状況"]
["(9)",null,null,null,null,"窓先空地から道路等に至るまでの屋外通路の確保の状況"]
["(10)",null,null,null,null,"窓先空地又は窓先空地から道路等に至るまでの屋外通路等の支障物の状況"]
["(11)","塀",null,null,null,"組積造の塀又は補強コンクリートブロック造の塀等の耐震対策の状況"]
["(12)",null,null,null,null,"組積造の塀又は補強コンクリートブロック造の塀等の劣化及び損傷の状況"]
["(13)","擁壁",null,null,null,"擁壁の劣化及び損傷の状況"]
["(14)",null,null,null,null,"擁壁の水抜きパイプの維持保全の状況"]
["(15)","がけ",null,null,null,"がけの安全上の支障の状況"]
["(16)","敷地に直接設置した広告塔及び広告板",null,null,null,"広告塔及び広告板本体の劣化及び損傷の状況"]
["(17)",null,null,null,null,"支持部分等の劣化及び損傷の状況"]
[null,"その他の特記事項"]
["２","建築物の外部"]
["(1)","基礎",null,null,null,"基礎の沈下等の状況"]
["(2)",null,null,null,null,"基礎の劣化及び損傷の状況"]
["(3)","土台(木造に限る。)",null,null,null,"土台の沈下等の状況"]
["(4)",null,null,null,null,"土台の劣化及び損傷の状況"]
["(5)","外壁",null,"く体等",null,"外壁、軒裏及び外壁の開口部で延焼のおそれのある部分の防火対策の状況"]
["(6)",null,null,null,null,"木造の外壁く体の劣化及び損傷の状況"]
["(7)",null,null,null,null,"組積造の外壁く体の劣化及び損傷の状況"]
[null,null,null,null,null,null,null,null,null,null,null,null,null,"（日本産業規格Ａ列４番）"]

{"sheet":"調査結果表その２","index":7,"n_rows":32,"n_cols":14,"rows_kept":32,"cut":false,"hidden":false,"merged":[[0,0,0,2],[13,1,13,13],[14,1,14,4],[8,3,9,4],[8,11,9,12],[4,11,7,12],[4,3,7,4],[12,1,12,5],[12,11,12,12],[14,11,14,12],[1,1,11,2],[1,3,3,4],[28,3,28,5],[28,11,28,12],[27,3,27,5],[15,1,18,4],[15,11,18,12],[19,11,20,12],[26,3,26,5],[26,11,26,12],[25,3,25,5],[25,11,25,12],[21,11,22,12],[23,11,23,12],[25,1,30,2],[29,3,30,4],[29,11,30,12],[27,11,27,12],[21,1,22,4],[23,1,23,5],[24,1,24,13],[1,11,3,12],[10,3,11,4],[10,11,11,12],[19,1,20,4]]}
["その２"]
["(8)","外壁",null,"く体等",null,"補強コンクリートブロック造の外壁く体の劣化及び損傷の状況"]
["(9)",null,null,null,null,"鉄骨造の外壁く体の劣化及び損傷の状況"]
["(10)",null,null,null,null,"鉄筋コンクリート造及び鉄骨鉄筋コンクリート造の外壁く体の劣化及び損傷の状況"]
["(11)",null,null,"外装仕上げ材等",null,"タイル、石ばり等(乾式工法によるものを除く。)、モルタル等の劣化及び損傷の状況"]
["(12)",null,null,null,null,"乾式工法によるタイル、石ばり等の劣化及び損傷の状況"]
["(13)",null,null,null,null,"金属系パネル(帳壁を含む。)の劣化及び損傷の状況"]
["(14)",null,null,null,null,"コンクリート系パネル(帳壁を含む。)の劣化及び損傷の状況"]
["(15)",null,null,"窓サッシ等",null,"サッシ等の劣化及び損傷の状況"]
["(16)",null,null,null,null,"はめ殺し窓のガラスの固定の状況"]
["(17)",null,null,"外壁に緊結された広告板、空調室外機等",null,"機器本体の劣化及び損傷の状況"]
["(18)",null,null,null,null,"支持部分等の劣化及び損傷の状況"]
[null,"その他の特記事項"]
["３","屋上及び屋根"]
["(1)","屋上面",null,null,null,"屋上面の劣化及び損傷の状況"]
["(2)","屋上周り(屋上面を除く。)",null,null,null,"パラペットの立ち上り面の劣化及び損傷の状況"]
["(3)",null,null,null,null,"笠木モルタル等の劣化及び損傷の状況"]
["(4)",null,null,null,null,"金属笠木の劣化及び損傷の状況"]
["(5)",null,null,null,null,"排水溝(ドレーンを含む。)の劣化及び損傷の状況"]
["(6)","屋根",null,null,null,"屋根の防火対策の状況"]
["(7)",null,null,null,null,"屋根の劣化及び損傷の状況"]
["(8)","機器及び工作物(冷却塔設備、広告塔等)",null,null,null,"機器、工作物本体及び接合部の劣化及び損傷の状況"]
["(9)",null,null,null,null,"支持部分等の劣化及び損傷の状況"]
[null,"その他の特記事項"]
["４","建築物の内部"]
["(1)","防火区画",null,"令第112条第11項から第13項までに規定する区画の状況"]
["(2)",null,null,"令第112条第１項、第４項、第５項又は第７項から第10項までの各項等に規定する区画の状況"]
["(3)",null,null,"令第112条第18項等に規定する区画の状況"]
["(4)",null,null,"条例第８条に規定する区画の状況"]
["(5)",null,null,"防火区画の外周部",null,"令第112条第16項に規定する外壁等及び同条第17項に規定する防火設備の処置の状況"]
["(6)",null,null,null,null,"令第112条第16項に規定する外壁等及び同条第17項に規定する防火設備の劣化及び損傷の状況"]
[null,null,null,null,null,null,null,null,null,null,null,null,null,"（日本産業規格Ａ列４番）"]

{"sheet":"調査結果表その３","index":8,"n_rows":30,"n_cols":14,"rows_kept":30,"cut":false,"hidden":false,"merged":[[21,1,28,4],[21,11,28,12],[18,1,20,2],[18,3,19,4],[20,3,20,4],[1,11,5,12],[20,11,20,12],[18,11,19,12],[12,11,14,12],[12,1,17,2],[6,11,9,12],[10,11,10,12],[15,3,17,4],[15,11,17,12],[11,11,11,12],[12,3,14,4],[0,0,0,2],[6,3,9,4],[1,1,11,2],[1,3,5,4],[11,3,11,4],[10,3,10,4]]}
["その３"]
["(7)","壁の室内に面する部分",null,"く体等",null,"木造の壁の室内に面する部分のく体の劣化及び損傷の状況"]
["(8)",null,null,null,null,"組積造の壁の室内に面する部分のく体の劣化及び損傷の状況"]
["(9)",null,null,null,null,"補強コンクリートブロック造の壁の室内に面する部分のく体の劣化及び損傷の状況"]
["(10)",null,null,null,null,"鉄骨造の壁の室内に面する部分のく体の劣化及び損傷の状況"]
["(11)",null,null,null,null,"鉄筋コンクリート造及び鉄骨鉄筋コンクリート造の壁の室内に面する部分のく体の劣化及び損傷の状況"]
["(12)",null,null,"耐火構造の壁又は準耐火構造の壁(防火区画を構成する壁に限る。）",null,"準耐火性能等の確保の状況"]
["(13)",null,null,null,null,"部材の劣化及び損傷の状況"]
["(14)",null,null,null,null,"鉄骨の耐火被覆の劣化及び損傷の状況"]
["(15)",null,null,null,null,"給水管、配電管その他の管又は風道の区画貫通部の充填等の処理の状況"]
["(16)",null,null,"令第114条に規定する界壁、間仕切壁及び隔壁",null,"令第114条に規定する界壁、間仕切壁及び隔壁の状況"]
["(17)",null,null,"令第128条の5各項等に規定する建築物の壁の室内に面する部分",null,"室内に面する部分の仕上げの維持保全の状況"]
["(18)","床",null,"く体等",null,"木造の床く体の劣化及び損傷の状況"]
["(19)",null,null,null,null,"鉄骨造の床く体の劣化及び損傷の状況"]
["(20)",null,null,null,null,"鉄筋コンクリート造及び鉄骨鉄筋コンクリート造の床く体の劣化及び損傷の状況"]
["(21)",null,null,"耐火構造の床又は準耐火構造の床(防火区画を構成する床に限る。)",null,"準耐火性能等の確保の状況"]
["(22)",null,null,null,null,"部材の劣化及び損傷の状況"]
["(23)",null,null,null,null,"給水管、配電管その他の管又は風道の区画貫通部の充填等の処理の状況"]
["(24)","天井",null,"令第128条の5各項等に規定する建築物の天井の室内に面する部分",null,"室内に面する部分の仕上げの維持保全の状況"]
["(25)",null,null,null,null,"室内に面する部分の仕上げの劣化及び損傷の状況"]
["(26)",null,null,"特定天井",null,"特定天井の天井材の劣化及び損傷の状況"]
["(27)","防火設備(防火扉、防火シャッターその他これらに類するものに限る。)又は戸",null,null,null,"区画に対応した防火設備又は戸の設置の状況"]
["(28)",null,null,null,null,"居室から地上へ通じる主たる廊下、階段その他の通路に設置された防火設備又は戸におけるくぐり戸の設置の状況"]
["(29)",null,null,null,null,"昭和48年建設省告示第2563号第1第1号ロに規定する基準についての適合の状況"]
["(30)",null,null,null,null,"防火扉又は戸の開放方向"]
["(31)",null,null,null,null,"常時閉鎖又は作動した状態にある防火設備又は戸（以下「常閉防火設備等」という。）の本体と枠の劣化及び損傷の状況"]
["(32)",null,null,null,null,"常閉防火設備等の閉鎖又は作動の状況"]
["(33)",null,null,null,null,"常閉防火設備等の閉鎖又は作動の障害となる物品の放置の状況"]
["(34)",null,null,null,null,"常閉防火扉等の固定の状況"]
[null,null,null,null,null,null,null,null,null,null,null,null,null,"（日本産業規格Ａ列４番）"]

{"sheet":"調査結果表その４","index":9,"n_rows":35,"n_cols":14,"rows_kept":35,"cut":false,"hidden":false,"merged":[[3,1,4,4],[3,11,4,12],[17,1,17,4],[17,11,17,12],[24,11,28,12],[21,11,22,12],[18,1,20,4],[18,11,20,12],[21,1,22,4],[29,1,33,2],[29,3,33,4],[29,11,33,12],[5,11,10,12],[0,0,0,2],[16,1,16,13],[15,1,15,5],[15,11,15,12],[1,1,2,4],[1,11,2,12],[5,1,10,4],[11,1,14,4],[11,11,14,12],[23,1,23,4],[24,1,28,4],[23,11,23,12]]}
["その４"]
["(35)","照明器具、懸垂物等",null,null,null,"照明器具、懸垂物等の落下防止対策の状況　"]
["(36)",null,null,null,null,"防火設備又は戸の閉鎖の障害となる照明器具、懸垂物等の状況"]
["(37)","警報設備",null,null,null,"警報設備の設置の状況"]
["(38)",null,null,null,null,"警報設備の劣化及び損傷の状況"]
["(39)","居室の採光及び換気",null,null,null,"採光のための開口部の面積の確保の状況"]
["(40)",null,null,null,null,"採光の妨げとなる物品の放置の状況"]
["(41)",null,null,null,null,"換気のための開口部の面積の確保の状況"]
["(42)",null,null,null,null,"換気設備の設置の状況"]
["(43)",null,null,null,null,"換気設備の作動の状況"]
["(44)",null,null,null,null,"換気の妨げとなる物品の放置の状況"]
["(45)","石綿等を添加した建築材料",null,null,null,"吹付け石綿及び吹付けロックウールでその含有する石綿の重量が当該建築材料の重量の0.1パーセントを超えるもの(以下「吹付け石綿等」という。)の使用の状況"]
["(46)",null,null,null,null,"吹付け石綿等の劣化の状況　"]
["(47)",null,null,null,null,"除去又は囲い込み若しくは封じ込めによる飛散防止措置の実施の状況　"]
["(48)",null,null,null,null,"囲い込み又は封じ込めによる飛散防止措置の劣化及び損傷の状況　"]
[null,"その他の特記事項"]
["５","避難施設等"]
["(1)","令第120条第2項に規定する通路等",null,null,null,"令第120条第2項に規定する通路等の確保の状況"]
["(2)","廊下",null,null,null,"幅の確保の状況"]
["(3)",null,null,null,null,"行き止まり廊下の状況"]
["(4)",null,null,null,null,"物品の放置の状況"]
["(5)","出入口等",null,null,null,"出入口等の確保の状況"]
["(6)",null,null,null,null,"物品の放置の状況"]
["(7)","屋上広場",null,null,null,"屋上広場の確保の状況"]
["(8)","避難上有効なバルコニー",null,null,null,"避難上有効なバルコニーの確保の状況"]
["(9)",null,null,null,null,"手すり等の劣化及び損傷の状況"]
["(10)",null,null,null,null,"物品の放置の状況"]
["(11)",null,null,null,null,"避難器具等の設置の状況"]
["(12)",null,null,null,null,"避難器具の操作性の確保の状況"]
["(13)","階段",null,"階段",null,"直通階段の設置の状況"]
["(14)",null,null,null,null,"幅の確保の状況"]
["(15)",null,null,null,null,"手すりの設置の状況"]
["(16)",null,null,null,null,"物品の放置の状況"]
["(17)",null,null,null,null,"階段各部の劣化及び損傷の状況"]
[null,null,null,null,null,null,null,null,null,null,null,null,null,"（日本産業規格Ａ列４番）"]

{"sheet":"調査結果表その５","index":10,"n_rows":35,"n_cols":14,"rows_kept":35,"cut":false,"hidden":false,"merged":[[37,1,37,13],[28,1,33,2],[28,3,33,4],[28,11,33,12],[17,11,22,12],[23,11,25,12],[27,1,27,13],[26,1,26,5],[26,11,26,12],[15,1,25,2],[15,3,16,4],[23,3,25,4],[17,3,22,4],[15,11,16,12],[9,1,14,2],[9,3,11,4],[9,11,11,12],[12,3,14,4],[12,11,14,12],[0,0,0,2],[4,11,8,12],[1,3,1,4],[1,11,1,12],[2,3,3,4],[2,11,3,12],[4,3,8,4],[1,1,8,2]]}
["その５"]
["(18)","階段",null,"屋内に設けられた避難階段",null,"階段室の構造の状況"]
["(19)",null,null,"屋外に設けられた避難階段",null,"屋内と階段との間の防火区画の確保の状況"]
["(20)",null,null,null,null,"開放性の確保の状況"]
["(21)",null,null,"特別避難階段",null,"バルコニー又は付室の構造及び面積の確保の状況"]
["(22)",null,null,null,null,"付室等の排煙設備の設置の状況"]
["(23)",null,null,null,null,"付室等の排煙設備の作動の状況"]
["(24)",null,null,null,null,"付室等の外気に向かって開くことができる窓の状況"]
["(25)",null,null,null,null,"物品の放置の状況"]
["(26)","排煙設備等",null,"防煙壁",null,"防煙区画の設置の状況"]
["(27)",null,null,null,null,"防煙壁の劣化及び損傷の状況"]
["(28)",null,null,null,null,"可動式防煙壁の作動の状況"]
["(29)",null,null,"排煙設備",null,"排煙設備の設置の状況"]
["(30)",null,null,null,null,"排煙設備の作動の状況"]
["(31)",null,null,null,null,"排煙口の維持保全の状況"]
["(32)","その他の設備等",null,"非常用の進入口等",null,"非常用の進入口等の設置の状況"]
["(33)",null,null,null,null,"非常用の進入口等の維持保全の状況"]
["(34)",null,null,"非常用エレベーター",null,"乗降ロビーの構造及び面積の確保の状況"]
["(35)",null,null,null,null,"乗降ロビー等の排煙設備の設置の状況"]
["(36)",null,null,null,null,"乗降ロビー等の排煙設備の作動の状況"]
["(37)",null,null,null,null,"乗降ロビー等の外気に向かって開くことができる窓の状況"]
["(38)",null,null,null,null,"物品の放置の状況"]
["(39)",null,null,null,null,"非常用エレベーターの作動の状況"]
["(40)",null,null,"非常用の照明装置",null,"非常用の照明装置の設置の状況"]
["(41)",null,null,null,null,"非常用の照明装置の作動の状況"]
["(42)",null,null,null,null,"照明の妨げとなる物品の放置の状況"]
[null,"その他の特記事項"]
["６","その他"]
["(1)","地下街等",null,"地下街又は地下道に面する建築物の地下の部分",null,"防火区画"]
["(2)",null,null,null,null,"地下の構え又は地下道に面する建築物の地下の部分と地下道との関係"]
["(3)",null,null,null,null,"地下道の直通階段の確保の状況"]
["(4)",null,null,null,null,"地下の構えの各部分から地下道等までの歩行距離の状況"]
["(5)",null,null,null,null,"地下道の地上への開放性の確保の状況"]
["(6)",null,null,null,null,"物品の放置の状況"]
[null,null,null,null,null,null,null,null,null,null,null,null,null,"（日本産業規格Ａ列４番）"]

{"sheet":"調査結果表その６","index":11,"n_rows":35,"n_cols":14,"rows_kept":35,"cut":false,"hidden":false,"merged":[[1,11,2,12],[1,1,2,2],[12,1,13,2],[3,11,4,12],[8,11,9,12],[10,11,11,12],[23,1,23,3],[24,1,24,3],[0,0,0,2],[20,0,21,0],[20,1,20,5],[21,1,21,3],[21,4,21,5],[1,3,2,4],[3,1,6,2],[3,3,4,4],[22,1,22,3],[8,1,11,2],[8,3,9,4],[10,3,11,4],[17,4,17,5],[26,12,26,13],[22,4,22,5],[22,12,22,13],[23,12,23,13],[25,12,25,13],[23,4,23,5],[24,4,24,5],[26,6,26,11],[26,4,26,5],[20,12,21,13],[25,6,25,11],[22,6,22,11],[23,6,23,11],[24,6,24,11],[20,6,21,11],[24,12,24,13],[33,12,33,13],[30,6,30,11],[27,6,27,11],[28,6,28,11],[29,6,29,11],[33,6,33,11],[29,12,29,13],[30,12,30,13],[31,12,31,13],[32,12,32,13],[31,6,31,11],[32,6,32,11],[27,12,27,13],[28,12,28,13],[25,1,25,3],[26,1,26,3],[25,4,25,5],[32,4,32,5],[28,1,28,3],[29,1,29,3],[30,1,30,3],[32,1,32,3],[28,4,28,5],[33,1,33,3],[27,1,27,3],[31,1,31,3],[33,4,33,5],[29,4,29,5],[30,4,30,5],[31,4,31,5],[27,4,27,5],[19,12,19,13],[19,6,19,11],[19,4,19,5],[10,15,11,15],[12,3,12,4],[12,11,13,12],[12,15,13,15],[13,3,13,4],[4,15,9,15],[5,3,6,4],[5,11,6,12],[7,1,7,4],[7,11,7,12]]}
["その６"]
["(7)","地下街等",null,"地下道に面する建築物の地下の部分",null,"階段ホールの構造及び幅"]
["(8)",null,null,null,null,"物品の放置の状況"]
["(9)","特殊な構造等",null,"膜構造建築物の膜体、取付部材等",null,"膜体及び取付部材の劣化及び損傷の状況"]
["(10)",null,null,null,null,"膜張力及びケーブル張力の状況"]
["(11)",null,null,"免震構造建築物の免震層及び免震装置",null,"免震装置の劣化及び損傷の状況(免震装置が可視状態にある場合に限る。)"]
["(12)",null,null,null,null,"上部構造の可動の状況"]
["(13)","避雷設備",null,null,null,"避雷針、避雷導線等の劣化及び損傷の状況"]
["(14)","煙突",null,"建築物に設ける煙突",null,"煙突本体及び建築物との接合部の劣化及び損傷の状況"]
["(15)",null,null,null,null,"附帯金物の劣化及び損傷の状況"]
["(16)",null,null,"令第138条第1項第1号に掲げる煙突",null,"煙突本体の劣化及び損傷の状況"]
["(17)",null,null,null,null,"附帯金物の劣化及び損傷の状況"]
["(18)","自動回転ドア　　　　　　　　　　　　　　　　　　　　　　　　　　　　　　　　　　　　　　　　　　　　　　　　　　　　　　　　　　　　　　　　　　　　　　　　　　　　　　　　　　　　　　　　　　　　　　　　　　　　　　　　　　(条例第8条の7の規定に 適合する もので あり、 かつ、 自動回転ドアとして通常使用している場合に限る。)",null,"構造",null,"併設する自動式引き戸及び駆け込み防止さく等の危険防止装置の設置の状況"]
["(19)",null,null,"作動の状況",null,"自動回転ドアの作動の状況"]
[]
["その他の確認事項"]
["法第12条第３項の規定による検査を要する防火設備の有無"]
[null,null,null,"有（",null,null,"階）",null,null,null,null,"無"]
[]
["改善予定状況等"]
["番号","調査項目",null,null,null,null,"改善策の具体的内容又は改善できない理由",null,null,null,null,null,"改善（予定）年月"]
[null,"中項目",null,null,"小項目"]
[]
[]
[]
[]
[]
[]
[]
[]
[]
[]
[]
[]
[null,null,null,null,null,null,null,null,null,null,null,null,null,"（日本産業規格Ａ列４番）"]

{"sheet":"概要書第一面","index":12,"n_rows":62,"n_cols":22,"rows_kept":62,"cut":false,"hidden":false,"merged":[[1,15,1,16],[6,4,6,21],[7,4,7,21],[8,4,8,21],[1,20,1,21],[58,2,60,2],[27,11,27,13],[32,11,32,13],[31,4,31,21],[33,4,33,21],[34,4,34,21],[35,4,35,21],[37,4,37,21],[27,18,27,20],[28,18,28,20],[32,18,32,20],[29,4,29,21],[30,4,30,21],[38,4,38,21],[16,1,16,3],[26,1,26,3],[3,1,3,21],[2,1,2,21],[17,18,17,20],[17,11,17,13],[23,4,23,21],[24,4,24,21],[25,4,25,21],[14,4,14,21],[21,4,21,21],[11,4,11,21],[12,4,12,21],[13,4,13,21],[9,4,9,21],[18,18,18,20],[22,18,22,20],[22,11,22,13],[19,4,19,21],[20,4,20,21],[57,8,57,20],[45,4,45,21],[55,4,55,21],[56,11,56,12],[39,4,39,21],[40,4,40,21],[43,4,43,21]]}
[null,"第４号様式の２（第11条関係）"]
[null,null,null,null,null,null,null,null,null,null,null,null,null,null,"整理番号",{"$f":"IF(報告書第一面!Y1=0,\"\",報告書第一面!Y1)","v":""},null,"－",{"$f":"IF(報告書第一面!AB1=0,\"\",報告書第一面!AB1)","v":""},"－",{"$f":"IF(報告書第一面!AD1=0,\"\",報告書第一面!AD1)","v":""}]
[null,"定期調査報告概要書"]
[null,"（第一面）"]
[null,"調査等の概要"]
[null,"【１　所有者】"]
[null,null,"【イ　氏名のフリガナ】",null,{"$f":"IF(報告書第一面!I10=0,\"\",報告書第一面!I10)","v":""}]
[null,null,"【ロ　氏名】",null,{"$f":"IF(報告書第一面!I11=0,\"\",報告書第一面!I11)","v":""}]
[null,null,"【ハ　郵便番号】",null,{"$f":"IF(報告書第一面!I12=0,\"\",報告書第一面!I12)","v":""}]
[null,null,"【ニ　住所】",null,{"$f":"IF(報告書第一面!I13=0,\"\",報告書第一面!I13)","v":""}]
[null,"【２　管理者】"]
[null,null,"【イ　氏名のフリガナ】",null,{"$f":"IF(報告書第一面!I16=0,\"\",報告書第一面!I16)","v":""}]
[null,null,"【ロ　氏名】",null,{"$f":"IF(報告書第一面!I17=0,\"\",報告書第一面!I17)","v":""}]
[null,null,"【ハ　郵便番号】",null,{"$f":"IF(報告書第一面!I18=0,\"\",報告書第一面!I18)","v":""}]
[null,null,"【ニ　住所】",null,{"$f":"IF(報告書第一面!I19=0,\"\",報告書第一面!I19)","v":""}]
[null,"【３　調査者】"]
[null," （代表となる調査者）"]
[null,null,"【イ　資格】",null,"(",{"$f":"IF(報告書第一面!J23=0,\"\",報告書第一面!J23)","v":""},"）建築士",null,null,null,"(",{"$f":"IF(報告書第一面!R23=0,\"\",報告書第一面!R23)","v":""},null,null,"）登録",null,null,"第",{"$f":"IF(報告書第一面!Z23=0,\"\",報告書第一面!Z23)","v":""},null,null,"号"]
[null,null,null,null,"特定建築物調査員",null,null,null,null,null,null,null,null,null,null,null,null,"第",{"$f":"IF(報告書第一面!Z24=0,\"\",報告書第一面!Z24)","v":""},null,null,"号"]
[null,null,"【ロ　氏名のフリガナ】",null,{"$f":"IF(報告書第一面!I25=0,\"\",報告書第一面!I25)","v":""}]
[null,null,"【ハ　氏名】",null,{"$f":"IF(報告書第一面!I26=0,\"\",報告書第一面!I26)","v":""}]
[null,null,"【ニ　勤務先】",null,{"$f":"IF(報告書第一面!I27=0,\"\",報告書第一面!I27)","v":""}]
[null,null,null,null,"(",{"$f":"IF(報告書第一面!J28=0,\"\",報告書第一面!J28)","v":""},"）建築士事務所",null,null,null,"(",{"$f":"IF(報告書第一面!R28=0,\"\",報告書第一面!R28)","v":""},null,null,")知事登録",null,null,"第",{"$f":"IF(報告書第一面!Z28=0,\"\",報告書第一面!Z28)","v":""},null,null,"号"]
[null,null,"【ホ　郵便番号】",null,{"$f":"IF(報告書第一面!I29=0,\"\",報告書第一面!I29)","v":""}]
[null,null,"【ヘ　所在地】",null,{"$f":"IF(報告書第一面!I30=0,\"\",報告書第一面!I30)","v":""}]
[null,null,"【ト　電話番号】",null,{"$f":"IF(報告書第一面!I31=0,\"\",報告書第一面!I31)","v":""}]
[null," （その他の調査者）"]
[null,null,"【イ　資格】",null,"(",{"$f":"IF(報告書第一面!J33=0,\"\",報告書第一面!J33)","v":""},"）建築士",null,{"$f":"IF(報告書第一面!M33=0,\"\",報告書第一面!M33)","v":""},null,"(",{"$f":"IF(報告書第一面!R33=0,\"\",報告書第一面!R33)","v":""},null,null,"）登録",null,null,"第",{"$f":"IF(報告書第一面!Z33=0,\"\",報告書第一面!Z33)","v":""},null,null,"号"]
[null,null,null,null,"特定建築物調査員",null,null,null,null,null,null,null,null,null,null,null,null,"第",{"$f":"IF(報告書第一面!Z34=0,\"\",報告書第一面!Z34)","v":""},null,null,"号"]
[null,null,"【ロ　氏名のフリガナ】",null,{"$f":"IF(報告書第一面!I35=0,\"\",報告書第一面!I35)","v":""}]
[null,null,"【ハ　氏名】",null,{"$f":"IF(報告書第一面!I36=0,\"\",報告書第一面!I36)","v":""}]
[null,null,"【ニ　勤務先】",null,{"$f":"IF(報告書第一面!I37=0,\"\",報告書第一面!I37)","v":""}]
[null,null,null,null,"(",{"$f":"IF(報告書第一面!J38=0,\"\",報告書第一面!J38)","v":""},"）建築士事務所",null,null,null,"(",{"$f":"IF(報告書第一面!R38=0,\"\",報告書第一面!R38)","v":""},null,null,")知事登録",null,null,"第",{"$f":"IF(報告書第一面!Z38=0,\"\",報告書第一面!Z38)","v":""},null,null,"号"]
[null,null,"【ホ　郵便番号】",null,{"$f":"IF(報告書第一面!I39=0,\"\",報告書第一面!I39)","v":""}]
[null,null,"【ヘ　所在地】",null,{"$f":"IF(報告書第一面!I40=0,\"\",報告書第一面!I40)","v":""}]
[null,null,"【ト　電話番号】",null,{"$f":"IF(報告書第一面!I41=0,\"\",報告書第一面!I41)","v":""}]
[null,"【４　報告対象建築物】"]
[null,null,"【イ　所在地】",null,{"$f":"IF(報告書第一面!I43=0,\"\",報告書第一面!I43)","v":""}]
[null,null,"【ロ　名称のフリガナ】",null,{"$f":"IF(報告書第一面!I44=0,\"\",報告書第一面!I44)","v":""}]
[null,null,"【ハ　名称】",null,{"$f":"IF(報告書第一面!I45=0,\"\",報告書第一面!I45)","v":""}]
[null,null,"【ニ　用途】",null,{"$f":"IF(報告書第一面!I46=0,\"\",報告書第一面!I46)","v":""}]
[null,"【５　調査による指摘の概要】"]
[null,null,"【イ　指摘の内容】",null,null,"要是正の指摘あり（",null,null,null,"既存不適格）",null,null,null,null,"指摘なし"]
[null,null,"【ロ　指摘の概要】",null,{"$f":"報告書第一面!R49&報告書第一面!H50","v":""}]
[null,null,"【ハ　改善予定の有無】",null,null,"有　（",{"$f":"IF(ISBLANK(報告書第一面!Q53),\"\",報告書第一面!Q53)","v":"令和"},{"$f":"IF(報告書第一面!S53=0,\"\",報告書第一面!S53)","v":""},"年",{"$f":"IF(報告書第一面!U53=0,\"\",報告書第一面!U53)","v":""},"月に改善予定）",null,null,null,null,"無"]
[null,null,"【ニ　その他特記事項】",null,{"$f":"IF(報告書第一面!O54=0,\"\",報告書第一面!O54)","v":""}]
[null,"【６　調査及び検査の状況】"]
[null,null,"【イ　今回の調査】",null,null,null,{"$f":"IF(ISBLANK(報告書第三面!N4),\"\",報告書第三面!N4)","v":""},"年",{"$f":"IF(報告書第三面!Q4=0,\"\",報告書第三面!Q4)","v":""},"月",{"$f":"IF(報告書第三面!S4=0,\"\",報告書第三面!S4)","v":""},"日実施"]
[null,null,"【ロ　前回の調査】",null,null,"実施（",{"$f":"IF(ISBLANK(報告書第三面!N5),\"\",報告書第三面!N5)","v":""},"年",{"$f":"IF(報告書第三面!Q5=0,\"\",報告書第三面!Q5)","v":""},"月",{"$f":"IF(報告書第三面!S5=0,\"\",報告書第三面!S5)","v":""},"日報告）",null,null,"未実施"]
[null,null,"【ハ　防火設備の検査】",null,null,"実施（",{"$f":"IF(ISBLANK(報告書第三面!N6),\"\",報告書第三面!N6)","v":""},"年",{"$f":"IF(報告書第三面!Q6=0,\"\",報告書第三面!Q6)","v":""},"月",{"$f":"IF(報告書第三面!S6=0,\"\",報告書第三面!S6)","v":""},"日報告）",null,null,"未実施",null,null,null,"対象外"]
[null,null,"【ニ　建築設備の検査】",null,null,"実施（",{"$f":"IF(報告書第三面!N7=0,\"\",報告書第三面!N7)","v":""},"年",{"$f":"IF(報告書第三面!Q7=0,\"\",報告書第三面!Q7)","v":""},"月",{"$f":"IF(報告書第三面!S7=0,\"\",報告書第三面!S7)","v":""},"日報告）",null,null,"未実施",null,null,null,"対象外"]
[null,null,"【ホ　昇降機等の検査】",null,null,"実施（",{"$f":"IF(報告書第三面!N8=0,\"\",報告書第三面!N8)","v":""},"年",{"$f":"IF(報告書第三面!Q8=0,\"\",報告書第三面!Q8)","v":""},"月",{"$f":"IF(報告書第三面!S8=0,\"\",報告書第三面!S8)","v":""},"日報告）",null,null,"未実施",null,null,null,"対象外"]
[null,"【７　建築物等に係る不具合等の状況】"]
[null,null,"【イ　不具合等】",null,null,"有",null,"無"]
[null,null,"【ロ　不具合等の記録】",null,null,"有",null,"無"]
[null,null,"【ハ　不具合等の概要】"]
[null,null,"【ニ　改善の状況】",null,null,"実施済",null,"改善予定",null,null,"（",{"$f":"IF(ISBLANK(報告書第三面!U54),\"\",報告書第三面!U54)","v":""},null,{"$f":"IF(ISBLANK(報告書第三面!W54),\"\",報告書第三面!W54)","v":""},"年",{"$f":"IF(報告書第三面!Y54=0,\"\",報告書第三面!Y54)","v":""},"月に改善予定）"]
[null,null,null,null,null,"予定なし（理由：",null,null,null,null,null,null,null,null,null,null,null,null,null,null,null,"）"]
[null,null,"※受付欄"]
[]
[]
[null,null,null,null,null,null,null,null,null,null,null,null,null,null,null,null,null,null,null,null,null,"（日本産業規格Ａ列４番）"]

{"sheet":"概要書第二面","index":13,"n_rows":53,"n_cols":25,"rows_kept":53,"cut":false,"hidden":false,"merged":[[9,7,9,8],[9,12,9,13],[51,1,51,25],[0,1,0,24],[50,1,50,24],[31,13,31,14],[32,13,32,14],[33,13,33,14],[11,5,11,9],[12,5,12,9],[5,5,5,24],[8,18,8,22],[4,9,4,12],[38,10,38,11],[39,15,39,23],[16,16,16,18],[22,16,22,18],[42,10,42,11],[14,5,14,7],[16,5,16,7],[18,10,18,14],[19,10,19,14],[20,10,20,14],[14,10,14,14],[15,10,15,14],[16,10,16,14],[17,10,17,14],[29,9,29,13],[28,11,28,12],[17,16,17,18],[18,16,18,18],[19,16,19,18],[10,5,10,9],[33,5,33,6],[34,5,34,6],[34,13,34,14],[31,5,31,6],[32,5,32,6],[21,10,21,14],[22,10,22,14],[18,5,18,7],[20,5,20,7],[22,5,22,7],[23,10,23,14],[24,10,24,14],[25,10,25,14],[26,10,26,14],[43,15,43,23],[38,19,38,23],[33,16,33,23],[34,16,34,23],[23,16,23,18],[24,16,24,18],[25,16,25,18],[27,22,27,23],[32,16,32,23],[31,16,31,23],[42,19,42,23],[26,16,26,18],[23,21,23,23],[20,16,20,18],[21,16,21,18],[12,21,12,23],[13,10,13,14],[13,16,13,18],[13,20,13,24],[15,21,15,23],[17,21,17,23],[19,21,19,23],[21,21,21,23],[14,16,14,18],[15,16,15,18]]}
[null,"（第二面）"]
[null,"建築物及びその敷地に関する事項"]
[null,"【１　敷地の位置】"]
[null,null,"【イ　防火地域等】",null,null,null,"防火地域",null,null,null,null,null,null,null,null,"準防火地域"]
[null,null,null,null,null,null,"その他（",null,null,{"$f":"IF(報告書第二面!U4=0,\"\",報告書第二面!U4)","v":""},null,null,null,"）",null,"指定なし"]
[null,null,"【ロ　用途地域】",null,null,{"$f":"IF(報告書第二面!G5=0,\"\",報告書第二面!G5)","v":""}]
[null,"【２　建築物及びその敷地の概要】"]
[null,null,"【イ　構造】",null,null,null,"鉄筋コンクリート造",null,null,null,null,null,null,null,null,"鉄骨鉄筋コンクリート造"]
[null,null,null,null,null,null,"鉄骨造",null,null,null,null,null,null,null,null,"その他（",null,null,{"$f":"IF(報告書第二面!U8=0,\"\",報告書第二面!U8)","v":""},null,null,null,null,"）"]
[null,null,"【ロ　階数】",null,null,"地上",null,{"$f":"IF(報告書第二面!J9=0,\"\",報告書第二面!J9)","v":""},null,"階",null,"地下",{"$f":"IF(報告書第二面!Q9=0,\"\",報告書第二面!Q9)","v":""},null,"階"]
[null,null,"【ハ　敷地面積】",null,null,{"$f":"IF(報告書第二面!I10=0,\"\",報告書第二面!I10)","v":""},null,null,null,null,"㎡"]
[null,null,"【ニ　建築面積】",null,null,{"$f":"IF(報告書第二面!I11=0,\"\",報告書第二面!I11)","v":""},null,null,null,null,"㎡"]
[null,null,"【ホ　延べ面積】",null,null,{"$f":"IF(報告書第二面!I12=0,\"\",報告書第二面!I12)","v":""},null,null,null,null,"㎡",null,null,null,null,null,null,null,null,null,"（今回報告部分の床面積の合計",{"$f":"IF(ISBLANK(報告書第二面!X12),\"\",報告書第二面!X12)","v":""},null,null,"㎡）"]
[null,"【３　階別用途別床面積】",null,null,null,null,null,null,null,null,"用途",null,null,null,null,null,"床面積",null,null,null,"階別床面積の合計"]
[null,null,"【イ　階別用途別】",null,"（",{"$f":"IF(ISBLANK(報告書第二面!G14),\"\",報告書第二面!G14)","v":""},null,null,"階）","(",{"$f":"IF(ISBLANK(報告書第二面!L14),\"\",報告書第二面!L14)","v":""},null,null,null,null,")(",{"$f":"IF(ISBLANK(報告書第二面!S14),\"\",報告書第二面!S14)","v":""},null,null,"㎡)"]
[null,null,null,null,null,null,null,null,null,"(",{"$f":"IF(ISBLANK(報告書第二面!L15),\"\",報告書第二面!L15)","v":""},null,null,null,null,")(",{"$f":"IF(ISBLANK(報告書第二面!S15),\"\",報告書第二面!S15)","v":""},null,null,"㎡)","(",{"$f":"IF(ISBLANK(報告書第二面!X15),\"\",報告書第二面!X15)","v":""},null,null,"㎡)"]
[null,null,null,null,"（",{"$f":"IF(ISBLANK(報告書第二面!G16),\"\",報告書第二面!G16)","v":""},null,null,"階）","(",{"$f":"IF(ISBLANK(報告書第二面!L16),\"\",報告書第二面!L16)","v":""},null,null,null,null,")(",{"$f":"IF(ISBLANK(報告書第二面!S16),\"\",報告書第二面!S16)","v":""},null,null,"㎡)"]
[null,null,null,null,null,null,null,null,null,"(",{"$f":"IF(ISBLANK(報告書第二面!L17),\"\",報告書第二面!L17)","v":""},null,null,null,null,")(",{"$f":"IF(ISBLANK(報告書第二面!S17),\"\",報告書第二面!S17)","v":""},null,null,"㎡)","(",{"$f":"IF(ISBLANK(報告書第二面!X17),\"\",報告書第二面!X17)","v":""},null,null,"㎡)"]
[null,null,null,null,"（",{"$f":"IF(ISBLANK(報告書第二面!G18),\"\",報告書第二面!G18)","v":""},null,null,"階）","(",{"$f":"IF(ISBLANK(報告書第二面!L18),\"\",報告書第二面!L18)","v":""},null,null,null,null,")(",{"$f":"IF(ISBLANK(報告書第二面!S18),\"\",報告書第二面!S18)","v":""},null,null,"㎡)"]
[null,null,null,null,null,null,null,null,null,"(",{"$f":"IF(ISBLANK(報告書第二面!L19),\"\",報告書第二面!L19)","v":""},null,null,null,null,")(",{"$f":"IF(ISBLANK(報告書第二面!S19),\"\",報告書第二面!S19)","v":""},null,null,"㎡)","(",{"$f":"IF(ISBLANK(報告書第二面!X19),\"\",報告書第二面!X19)","v":""},null,null,"㎡)"]
[null,null,null,null,"（",{"$f":"IF(ISBLANK(報告書第二面!G20),\"\",報告書第二面!G20)","v":""},null,null,"階）","(",{"$f":"IF(ISBLANK(報告書第二面!L20),\"\",報告書第二面!L20)","v":""},null,null,null,null,")(",{"$f":"IF(ISBLANK(報告書第二面!S20),\"\",報告書第二面!S20)","v":""},null,null,"㎡)"]
[null,null,null,null,null,null,null,null,null,"(",{"$f":"IF(ISBLANK(報告書第二面!L21),\"\",報告書第二面!L21)","v":""},null,null,null,null,")(",{"$f":"IF(ISBLANK(報告書第二面!S21),\"\",報告書第二面!S21)","v":""},null,null,"㎡)","(",{"$f":"IF(ISBLANK(報告書第二面!X21),\"\",報告書第二面!X21)","v":""},null,null,"㎡)"]
[null,null,null,null,"（",{"$f":"IF(ISBLANK(報告書第二面!G22),\"\",報告書第二面!G22)","v":""},null,null,"階）","(",{"$f":"IF(ISBLANK(報告書第二面!L22),\"\",報告書第二面!L22)","v":""},null,null,null,null,")(",{"$f":"IF(ISBLANK(報告書第二面!S22),\"\",報告書第二面!S22)","v":""},null,null,"㎡)"]
[null,null,null,null,null,null,null,null,null,"(",{"$f":"IF(ISBLANK(報告書第二面!L23),\"\",報告書第二面!L23)","v":""},null,null,null,null,")(",{"$f":"IF(ISBLANK(報告書第二面!S23),\"\",報告書第二面!S23)","v":""},null,null,"㎡)","(",{"$f":"IF(ISBLANK(報告書第二面!X23),\"\",報告書第二面!X23)","v":""},null,null,"㎡)"]
[null,null,"【ロ　用途別】",null,null,null,null,null,null,"(",{"$f":"IF(ISBLANK(報告書第二面!L24),\"\",報告書第二面!L24)","v":""},null,null,null,null,")(",{"$f":"IF(ISBLANK(報告書第二面!S24),\"\",報告書第二面!S24)","v":""},null,null,"㎡)"]
[null,null,null,null,null,null,null,null,null,"(",{"$f":"IF(ISBLANK(報告書第二面!L25),\"\",報告書第二面!L25)","v":""},null,null,null,null,")(",{"$f":"IF(ISBLANK(報告書第二面!S25),\"\",報告書第二面!S25)","v":""},null,null,"㎡)"]
[null,null,null,null,null,null,null,null,null,"(",{"$f":"IF(ISBLANK(報告書第二面!L26),\"\",報告書第二面!L26)","v":""},null,null,null,null,")(",{"$f":"IF(ISBLANK(報告書第二面!S26),\"\",報告書第二面!S26)","v":""},null,null,"㎡)"]
[null,"【４　性能検証法等の適用】",null,null,null,null,"耐火性能検証法",null,null,null,null,"防火区画検証法",null,null,null,null,"区画避難安全検証法（",null,null,null,null,null,{"$f":"IF(報告書第二面!Z27=0,\"\",報告書第二面!Z27)","v":""},null,"階）"]
[null,null,null,null,null,null,"階避難安全検証法（",null,null,null,null,{"$f":"IF(報告書第二面!O28=0,\"\",報告書第二面!O28)","v":""},null,"階）",null,null,"全館避難安全検証法"]
[null,null,null,null,null,null,"その他",null,"（",{"$f":"IF(報告書第二面!L29=0,\"\",報告書第二面!L29)","v":""},null,null,null,null,"）"]
[null,"【５　増築、改築、用途変更等の経過】"]
[null,null,null,null,null,{"$f":"IF(報告書第二面!F32=0,\"\",報告書第二面!F32)","v":""},null,{"$f":"IF(報告書第二面!H32=0,\"\",報告書第二面!H32)","v":""},"年",{"$f":"IF(報告書第二面!J32=0,\"\",報告書第二面!J32)","v":""},"月",{"$f":"IF(報告書第二面!L32=0,\"\",報告書第二面!L32)","v":""},"日","概要",null,"（",{"$f":"IF(報告書第二面!Q32=0,\"\",報告書第二面!Q32)","v":""},null,null,null,null,null,null,null,")"]
[null,null,null,null,null,{"$f":"IF(報告書第二面!F33=0,\"\",報告書第二面!F33)","v":""},null,{"$f":"IF(報告書第二面!H33=0,\"\",報告書第二面!H33)","v":""},"年",{"$f":"IF(報告書第二面!J33=0,\"\",報告書第二面!J33)","v":""},"月",{"$f":"IF(報告書第二面!L33=0,\"\",報告書第二面!L33)","v":""},"日","概要",null,"（",{"$f":"IF(報告書第二面!Q33=0,\"\",報告書第二面!Q33)","v":""},null,null,null,null,null,null,null,")"]
[null,null,null,null,null,{"$f":"IF(報告書第二面!F34=0,\"\",報告書第二面!F34)","v":""},null,{"$f":"IF(報告書第二面!H34=0,\"\",報告書第二面!H34)","v":""},"年",{"$f":"IF(報告書第二面!J34=0,\"\",報告書第二面!J34)","v":""},"月",{"$f":"IF(報告書第二面!L34=0,\"\",報告書第二面!L34)","v":""},"日","概要",null,"（",{"$f":"IF(報告書第二面!Q34=0,\"\",報告書第二面!Q34)","v":""},null,null,null,null,null,null,null,")"]
[null,null,null,null,null,{"$f":"IF(報告書第二面!F35=0,\"\",報告書第二面!F35)","v":""},null,{"$f":"IF(報告書第二面!H35=0,\"\",報告書第二面!H35)","v":""},"年",{"$f":"IF(報告書第二面!J35=0,\"\",報告書第二面!J35)","v":""},"月",{"$f":"IF(報告書第二面!L35=0,\"\",報告書第二面!L35)","v":""},"日","概要",null,"（",{"$f":"IF(報告書第二面!Q35=0,\"\",報告書第二面!Q35)","v":""},null,null,null,null,null,null,null,")"]
[null,"【６　関連図書の整備状況】"]
[null,null,"【イ　確認に要した図書】",null,null,null,null,null,"有　(",null,"各階平面図あり）",null,null,null,null,null,"無"]
[null,null,"【ロ　確認済証】",null,null,null,null,null,"有",null,null,"無"]
[null,null,null,null,"交付番号",null,null,null,null,null,{"$f":"IF(報告書第二面!$L$42=0,\"\",報告書第二面!$L$42)","v":""},null,{"$f":"IF(報告書第二面!$N$42=0,\"\",報告書第二面!$N$42)","v":""},"年",{"$f":"IF(報告書第二面!$P$42=0,\"\",報告書第二面!$P$42)","v":""},"月",{"$f":"IF(報告書第二面!$R$42=0,\"\",報告書第二面!$R$42)","v":""},"日","第",{"$f":"IF(報告書第二面!$W$42=0,\"\",報告書第二面!$W$42)","v":""},null,null,null,null,"号"]
[null,null,null,null,"交付者",null,"建築主事",null,null,null,null,null,null,null,"指定確認検査機関（",{"$f":"IF(報告書第二面!$S$43=0,\"\",報告書第二面!$S$43)","v":""},null,null,null,null,null,null,null,null,"）"]
[null,null,"【ハ　完了検査に要した図書】",null,null,null,null,null,"有",null,null,"無"]
[null,null,"【ニ　検査済証】",null,null,null,null,null,"有",null,null,"無"]
[null,null,null,null,"交付番号",null,null,null,null,null,{"$f":"IF(報告書第二面!$L$49=0,\"\",報告書第二面!$L$49)","v":""},null,{"$f":"IF(報告書第二面!$N$49=0,\"\",報告書第二面!$N$49)","v":""},"年",{"$f":"IF(報告書第二面!$P$49=0,\"\",報告書第二面!$P$49)","v":""},"月",{"$f":"IF(報告書第二面!$R$49=0,\"\",報告書第二面!$R$49)","v":""},"日","第",{"$f":"IF(報告書第二面!$W$49=0,\"\",報告書第二面!$W$49)","v":""},null,null,null,null,"号"]
[null,null,null,null,"交付者",null,"建築主事",null,null,null,null,null,null,null,"指定確認検査機関（",{"$f":"IF(報告書第二面!$S$50=0,\"\",報告書第二面!$S$50)","v":""},null,null,null,null,null,null,null,null,"）"]
[null,null,"【ホ　維持保全に関する準則又は計画】",null,null,null,null,null,null,null,"有",null,"無"]
[null,null,"【ヘ　前回の調査に関する書類の写し】",null,null,null,null,null,null,null,"有",null,"無",null,"対象外"]
[null,"【７　備考】"]
[]
[]
[null,"（注意）"]
[null," この様式には、第４号様式に記入した内容と同一の内容を記入してください。"]
[null," なお、第一面の５欄の「ロ」及び「ニ」は、同様式第三面の２欄から４欄において指摘があった項目について、第一面の７欄の「ハ」は同様式第四面に記入されたものについて、すべて記入してください。"]
[null,null,null,null,null,null,null,null,null,null,null,null,null,null,null,null,null,null,null,null,null,null,null,null,"（日本産業規格Ａ列４番）"]

{"sheet":"図面","index":14,"n_rows":48,"n_cols":8,"rows_kept":48,"cut":false,"hidden":false,"merged":[[29,5,29,7],[37,5,37,7],[43,5,43,7],[44,5,44,7],[45,5,45,7],[39,5,39,7],[40,5,40,7],[41,5,41,7],[42,5,42,7],[17,5,17,7],[18,5,18,7],[19,5,19,7],[20,5,20,7],[38,5,38,7],[25,5,25,7],[26,5,26,7],[27,5,27,7],[28,5,28,7],[31,5,31,7],[32,5,32,7],[30,5,30,7],[33,5,33,7],[34,5,34,7],[35,5,35,7],[36,5,36,7],[12,5,12,7],[13,5,13,7],[14,5,14,7],[15,5,15,7],[16,5,16,7],[1,0,1,7],[2,5,2,7],[3,5,3,7],[4,5,4,7],[2,0,45,3],[5,5,5,7],[6,5,6,7],[7,5,7,7],[8,5,8,7],[9,5,9,7],[21,5,21,7],[22,5,22,7],[23,5,23,7],[24,5,24,7],[10,5,10,7],[11,5,11,7]]}
["別添１"]
["調　査　結　果　図"]
[null,null,null,null,"番号","調査項目"]
[null,null,null,null,1,"敷地及び地盤"]
[null,null,null,null,"（１）","地盤"]
[null,null,null,null,"（２）","敷地"]
[null,null,null,null,"(３)から(５)まで","敷地内の通路等"]
[null,null,null,null,"(６)及び(７)","共同住宅等の主要な出入り口からの通路等"]
[null,null,null,null,"(８)から(10)まで","窓先空地及び屋外通路"]
[null,null,null,null,"(11)及び(12)","塀"]
[null,null,null,null,"(13)及び(14)","擁壁"]
[null,null,null,null,"(15)","がけ"]
[null,null,null,null,"(16)及び(17)","敷地に直接設置した広告塔及び広告板"]
[null,null,null,null,2,"建築物の外部"]
[null,null,null,null,"(１)及び(２)","基礎"]
[null,null,null,null,"(３)及び(４)","土台（木造に限る。）"]
[null,null,null,null,"(５)から(18)まで","外壁"]
[null,null,null,null,3,"屋上及び屋根"]
[null,null,null,null,"（１）","屋上面"]
[null,null,null,null,"(２)から(５)まで","屋上周り（屋上面を除く。）"]
[null,null,null,null,"(６)及び(７)","屋根"]
[null,null,null,null,"(８)及び(９)","機器及び工作物（冷却塔設備等）"]
[null,null,null,null,4,"建築物の内部"]
[null,null,null,null,"(１)から(６)まで","防火区画"]
[null,null,null,null,"(７)から(17)まで","壁の室内に面する部分"]
[null,null,null,null,"(18)から(23)まで","床"]
[null,null,null,null,"(24)から(26)まで","天井"]
[null,null,null,null,"(27)から(34)まで","防火設備または戸"]
[null,null,null,null,"(35)及び(36)","照明器具、懸垂物等"]
[null,null,null,null,"(37)及び(38)","警報設備"]
[null,null,null,null,"(39)から(44)まで","居室の採光及び換気"]
[null,null,null,null,"(45)から(48)まで","石綿等を添加した建築材料"]
[null,null,null,null,5,"避難施設等"]
[null,null,null,null,"（１）","令第120条第２項に規定する通路等"]
[null,null,null,null,"(２)から(４)まで","廊下"]
[null,null,null,null,"(５)及び(６)","出入口等"]
[null,null,null,null,"（７）","屋上広場"]
[null,null,null,null,"(８)から(12)まで","避難上有効なバルコニー"]
[null,null,null,null,"(13)から(25)まで","階段"]
[null,null,null,null,"(26)から(31)まで","排煙設備等"]
[null,null,null,null,"(32)から(42)まで","その他の設備等　"]
[null,null,null,null,6,"その他"]
[null,null,null,null,"(１)から(８)まで","地下街等"]
[null,null,null,null,"(９)から(12)まで","特殊な構造等"]
[null,null,null,null,"(13)","避雷設備"]
[null,null,null,null,"(14)から(17)まで","煙突"]
[" 注）配置図及び各階平面図を添付し、指摘のあった箇所（特記すべき事項を含む。）や撮影した写真の位置等を明記すること。",null,null,null,"(18)及び(19)","自動回転ドア"]
[null,null,null,null,null,null,null,"（日本産業規格Ａ列３番）"]

{"sheet":"写真台紙","index":15,"n_rows":40,"n_cols":6,"rows_kept":40,"cut":false,"hidden":false,"merged":[[18,0,19,1],[20,0,32,3],[37,1,37,5],[1,1,1,5],[30,4,30,5],[31,4,31,5],[32,4,32,5],[26,4,26,5],[27,4,27,5],[28,4,28,5],[29,4,29,5],[2,0,3,1],[4,0,16,3],[20,4,20,5],[21,4,21,5],[22,4,22,5],[18,3,18,4],[19,3,19,4],[12,4,12,5],[13,4,13,5],[14,4,14,5],[15,4,15,5],[34,1,34,5],[2,3,2,4],[3,3,3,4],[4,4,4,5],[33,0,33,1],[5,4,5,5],[6,4,6,5],[7,4,7,5],[11,4,11,5],[8,4,8,5],[23,4,23,5],[24,4,24,5],[25,4,25,5],[16,4,16,5],[9,4,9,5],[10,4,10,5]]}
["別添２"]
[null,"関係写真"]
["部位",null,"番号","調査項目",null,"調査結果"]
[]
["写真貼付",null,null,null,"特記事項"]
[]
[]
[]
[]
[]
[]
[]
[]
[]
[]
[]
[]
[]
["部位",null,"番号","調査項目",null,"調査結果"]
[]
["写真貼付",null,null,null,"特記事項"]
[]
[]
[]
[]
[]
[]
[]
[]
[]
[]
[]
[]
["(注意)"]
["①","この書類は、調査の結果「要是正」かつ「既存不適格」ではない項目について作成してください。また、「既存不適\n格」及び「指摘なし」の項目についても、特記すべき事項があれば、必要に応じて作成してください。「要是正」の\n項目がない場合は、この書類は省略しても構いません。"]
["②","記入欄が不足する場合は、枠を拡大、行を追加して記入するか、別紙に必要な事項を記入して添えてください。"]
["③","「部位」欄の「番号」及び「調査項目」は、それぞれ別記様式の番号及び調査項目に対応したものを記入してください。"]
["④","「調査結果」欄は、調査の結果、要是正の指摘があった場合は「要是正」のチェックボックスに「レ」マークを入れ、\nそれ以外の場合で特記すべき事項がある場合は「その他」のチェックボックスに「レ」マークを入れてください。"]
["⑤","写真は、当該部位の外観の状況が確認できるように撮影したものを添付してください。"]
[null,null,null,null,null,"（日本産業規格Ａ列４番）"]